{"text_format":"1","workbook":"xlsx","n_sheets":7,"sheets":["Extraction","InfosSemaines","Menu Mensuel","Menu ScolaireA","Menu CrecheA","Menu CollegeA","InfosBulles"],"not_rendered":{"charts":0,"images":31,"macros":1,"external_links":0,"defined_names":255,"comments":0,"pivot_tables":0},"unopened":[],"bounds":{"document_bytes":16777216,"sheet_cells":100000,"rows_first":2000,"rows_last":500,"rows_between":2000,"halvings":0,"cell_chars":16384,"cell_head_chars":4096},"cells_cut":0,"cells_raw":0,"read":"whole","date_system":"1900"}

{"sheet":"Extraction","index":0,"n_rows":31,"n_cols":6,"rows_kept":31,"cut":false,"hidden":true,"merged":[]}
[]
[null,null,"Style de période :"]
[null,null,"La semaine prochaine"]
[null,"De quelle date :","2015-10-26",null,"2015-10-26"]
[null,"A quelle date :","2015-11-29",null,"2015-11-29"]
[]
[null,"Trame de menus :","Menu Mensuel2"]
[]
[null,"Prestation principale :","DEJEUNER",null,"1347970"]
[null,"Prestation secondaire (facultatif) :","DINER sante",null,"1347972"]
[]
[null,"Contrat :","CDPF TEST RECETTE ET",null,0,"Ne sert à rien pour l'instant. Dans ELIXIR il ne sert qu'à choisir un restaurant mais n'est pas utilisé dans l'extraction ensuite"]
[]
[null,"Forfait ou Repas Livrés :","REPAS LIVRÉS"]
[]
[null,"Type de menu :","SSR AUTOMNE 2015_1",null,"149"]
[]
[null,"Convive :","Adultes sédentaires",null,"666"]
[]
[null,"Un classeur par menu :","Non"]
[null,null,"Cliquer ici pour saisir les infos de la semaine"]
[]
[null,"Utiliser les PICTOS :","Oui"]
[]
[null,"Masquer les lignes inutiles  :","Oui"]
[]
[null,"Masquer les colonnes inutiles :","Oui"]
[]
[null,"Exemplaire(s) des étiquettes Entrée/Fromage/dessert :",1]
[]
[null,"Indiquer les allergènes sur l'étiquette :","Oui"]

{"sheet":"InfosSemaines","index":1,"n_rows":32,"n_cols":6,"rows_kept":32,"cut":false,"hidden":true,"merged":[[1,2,1,3],[7,5,11,5],[3,1,3,3],[4,1,4,3]]}
[]
[null,null,"- - INFOS DE LA SEMAINE - -"]
[]
[null,"Utilisation : indiquez un n° de semaine en colonne 1, le logiciel affiche son libellé en colonne 2, renseignez en colonne 3 le message à afficher."]
[null,"PENSEZ A RESSAISIR LES NUMEROS DE SEMAINE EN DEBUT D'ANNEE - LES PERIODES NE SONT PAS LES MÊMES !"]
[]
[null,"N° semaine","Période (calculée par EditMenu)","Message à afficher"]
[null,"6","Semaine n°6 - du 2 février au 8 février","Youpi c'est les vacances bientôt",null,"Pour chaque infobulle vous pouvez définir une couleur du fonds et une couleur de texte. Elles seront reprises à l'édition (sauf menu Crèche). Il en est de même pour la taille de la police, le gras et l'italique."]
[null,"36","Semaine n°36 - du 1 septembre au 7 septembre","Bouh, c'est la rentrée !"]
[null,"1","Semaine n°1 - du 30 décembre au 5 janvier","Bonne année  !"]
[null,"11","Semaine n°11 - du 9 mars au 15 mars","Miam miam, des bonnes frites à l'ancienne !"]
[null,"12","Semaine n°12 - du 16 mars au 22 mars","Vive la galette des rois !"]
[null,"15","Semaine n°15 - du 6 avril au 12 avril","Carnaval,…"]
[null,"",""]
[null,""]
[null,""]
[null,""]
[null,""]
[null,""]
[null,"",""]
[null,"",""]
[null,"",""]
[null,"",""]
[null,"",""]
[null,"",""]
[null,"",""]
[null,"",""]
[null,"",""]
[null,"",""]
[]
[null,null,null,"Retour au formulaire de saisie"]
[null,null,null,"Retour au formulaire de saisie"]

{"sheet":"Menu Mensuel","index":2,"n_rows":8,"n_cols":6,"rows_kept":8,"cut":false,"hidden":false,"merged":[]}
[]
[]
[null,"Lundi","Mardi","Mercredi","Jeudi","Vendredi"]
["Période du 1 octobre au 7 octobre","Salade parmentière(PdeT,oeuf,tomate,poivron,olives,maïs)\nAiguillette de colin meunière\nHaricots verts à la tomate\nFromage fondu Président\nCompote de pommes","Salade coleslaw\nRôti de veau sauce normande\nSpaghetti                                                                    chou fleur\nPetit suisse sucré\nPommes Rouges ","Concombre et maïs vinaigrette\nEmincé de dinde sauce marengo\nFlageolets                                               Carottes vichy\nTomme blanche\nFlan nappé au caramel","Betteraves mimosa bio\nHachis Parmentier maison bio\nYaourt nature sucré bio\nOrange BIO","Laitue iceberg et noix\nPavé de poisson mariné au citron\nBouquets de brocolis\nRiz créole\nEdam\nCake au citron maison"]
["Période du 8 octobre au 14 octobre                    SEMAINE DU GOUT","Taboulé bio\nGalette espagnole\nMélange légumes saveur du jardin\nCamembert\nBanane","Concombre à la crème et ciboulette\nBœuf cuit à l'étouffée sauce forestière\nRiz au curry                                                Haricots verts persillés\nYaourt nature sucré\nPommes au four et caramel","salade verte et cœur de palmier\nEscalope de porc à l'estragon\nPurée de carottes et de patates douces\nfromage frais au sel de guérande\nMousse au chocolat au lait","Salade croquante\nPoulet émincé à la milanaise\nDuo de courgettes fondantes\nPépinette\nFromage blanc et sucre\nMoelleux à la violette","Crémeux de poivrons et tortillas maïs\nSteak de colin aux abricots\nSemoule infusée à la menthe(semoule, menthe, cannelle)\nFraidou\nFruit de saison"]
["Période du 15 octobre au 21 octobre","Carottes râpées\nPoulet sauté à l'ancienne\nCoquillettes\nMimolette\nAnanas au sirop","Salade & croûton vinaigrette des Antilles (ananas, jus pamplemousse, moutarde)\nSteak haché de thon à l'armoricaine\nPoêlée de légumes\nRiz pilaf\nBrie\nTarte pomme abricot","Œufs durs mayonnaise\nBurger de veau sauce mexicaine\nBoulgour\nPetit suisse sucré\nOrange","Salade de tomates\nSauté de porc au caramel\nHaricots blancs au jus\nGouda\nFlan vanille coco maison","Salade de riz bio\nRôti de bœuf nappé de sauce grand mère\nDés de carottes braisées\nYaourt nature sucré\nKiwi"]
["Période du 22 octobre au 28 octobre","Salade de tortis à la niçoise\nColin meunière\nCourgettes à l'ail\nYaourt aromatisé\nPommes rouge bio","Chou rouge râpé aux raisins\nPoulet sauté à la provençale\nFrites\nFromage fondu Président\nFlan maison","Pâté de foie et cornichons\nRôti de veau sauce Bercy\nPurée de pommes de terre et jardinière de légumes\nSaint Paulin\nPoire","Laitue Iceberg et croûtons\nPavé de colin aux herbes de Provences\nHaricots beurres persillés\nSemoule\nEmmental\nGâteau au chocolat","Macédoine, agrémentée de mayonnaise\nTortis à la carbonara\nPetit suisse sucré\nBanane"]
["Période du 29 octobre au 4 novembre","Taboulé bio\nCordon bleu\nPêle-mêle:tomate,courgettes,aubergine,oignon,poivron\nRiz créole\nYaourt nature sucré\nOrange","Salade fantaisie\nPoisson blanc gratiné au fromage\nChou-fleur béchamel\nBlé \nFraidou\nCompote de pommes","Crêpe au fromage\nCarré de porc fumé à la diable\nMacaroni\nFromage blanc et sauce à la fraise\nPomme",null,"Carottes râpées\nOmelette\nPurée de potiron et pommes de terre\nEdam\nBiscuit roulé au citron et framboise"]

{"sheet":"Menu ScolaireA","index":3,"n_rows":123,"n_cols":18,"rows_kept":123,"cut":false,"hidden":true,"merged":[[53,1,53,12],[74,1,74,12],[106,1,106,12],[54,14,56,15],[58,14,60,15],[65,14,67,15],[75,14,77,15],[64,1,64,12],[116,1,116,12],[85,0,85,12],[95,1,95,12],[107,14,109,15],[96,14,98,15],[100,14,102,15],[1,1,1,12],[22,1,22,12],[44,14,46,15],[48,14,50,15],[32,1,32,12],[43,1,43,12],[16,14,18,15],[11,1,11,12],[2,14,4,15],[6,14,8,15],[12,14,14,15],[121,14,123,15],[69,14,71,15],[23,14,25,15],[27,14,29,15],[33,14,35,15],[37,14,39,15],[117,14,119,15],[86,14,88,15],[90,14,92,15],[111,14,113,15],[79,14,81,15]]}
[]
[null,"Semaine n°18 - du 27 avril au 1 mai"]
[null,null,null,"LUNDI",null,"MARDI",null,"MERCREDI",null,"JEUDI",null,"VENDREDI",null,null,null,null,null,1]
[null,"Entrée"]
[null,"Plat principal"]
[null,"Accompagnement"]
[null,"Produit laitier"]
[null,"Dessert"]
[]
[]
[]
[null,"Semaine n°19 - du 4 mai au 8 mai"]
[null,null,null,"LUNDI",null,"MARDI",null,"MERCREDI",null,"JEUDI",null,"VENDREDI",null,null,null,null,null,2]
[null,"Entrée",null,"Pâtes au basilic vgte",null,"Saucisson sec\nOeufs durs mayonnaise.",null,null,null,"Carottes râpées"]
[null,"Plat principal",null,"Cordon bleu",null,"Filet colin façon beurre blanc",null,null,null,"Rôti de porc printanier\nOmelette sauce basquaise"]
[null,"Accompagnement",null,"Carottes à la crème",null,"Purée de pommes de terre",null,null,null,"Haricots verts persillés"]
[null,"Produit laitier",null,"Gouda",null,"Yaourt aromatisé",null,null,null,"Fromage fondu Président"]
[null,"Dessert",null,"Banane",null,"Pomme (gala)",null,null,null,"Tarte Flan."]
[]
[]
[]
[]
[null,"Semaine n°20 - du 11 mai au 15 mai"]
[null,null,null,"LUNDI",null,"MARDI",null,"MERCREDI",null,"JEUDI",null,"VENDREDI",null,null,null,null,null,3]
[null,"Entrée",null,"Radis",null,"Salade Esaü",null,null,null,null,null,"Concombre persillé"]
[null,"Plat principal",null,"Steak haché au jus",null,"Colin pané et citron",null,null,null,null,null,"Omelette sauce tomate"]
[null,"Accompagnement",null,"Coquillettes",null,"Ratatouille",null,null,null,null,null,"Riz pilaf"]
[null,"Produit laitier",null,"Rondelé nature",null,"Yaourt nature sucré",null,null,null,null,null,"St Moret",null,null,"Salade Esaü : lentille, tomate, œuf dur, échalote, ail, persil"]
[null,"Dessert",null,"Flan à la vanille",null,"Fraises et sucre",null,null,null,null,null,"Mousse au chocolat au lait"]
[]
[]
[]
[null,"Semaine n°21 - du 18 mai au 22 mai"]
[null,null,null,"LUNDI",null,"MARDI",null,"MERCREDI",null,"JEUDI",null,"VENDREDI",null,null,null,null,null,4]
[null,"Entrée",null,"Salade arlequin",null,"Carottes râpées",null,null,null,"Tomates nature",null,"Crêpe jambon fromage\nCrêpe au fromage"]
[null,"Plat principal",null,"Moc'hyz à la mexicaine\nFilet colin poché citron",null,"Tortis à la bolognaise",null,null,null,"Jambon braisé sce barbecue\nOeufs durs sauce aurore",null,"Filet colin sce piperade"]
[null,"Accompagnement",null,"Haricots verts persillés",null,null,null,null,null,"Purée de pommes de terre",null,"Julienne de légumes"]
[null,"Produit laitier",null,"Emmental.",null,"Pavé 1/2 sel",null,null,null,"Vache qui rit",null,"Brie",null,null,"Salade arlequin : pomme de terre, maïs, poivron rouge, poivron vert"]
[null,"Dessert",null,"Pomme (bicolore)",null,"Liégeois à la vanille",null,null,null,"Compote de pommes cassis",null,"Banane"]
[]
[]
[]
[]
[null,"Semaine n°22 - du 25 mai au 29 mai"]
[null,null,null,"LUNDI",null,"MARDI",null,"MERCREDI",null,"JEUDI",null,"VENDREDI",null,"Coucou",null,null,null,5]
[null,"Entrée",null,null,null,"Radis",null,null,null,"Céleri rémoulade",null,"Mortadelle\nOeufs durs mayonnaise."]
[null,"Plat principal",null,null,null,"Saucisse de Toulouse\nMarmite de poisson",null,null,null,"Escalope de dinde au jus.",null,"Filet de hoki au beurre citronné"]
[null,"Accompagnement",null,null,null,"Frites au four",null,null,null,"Haricots beurre",null,"Riz pilaf"]
[null,"Produit laitier",null,null,null,"Fromage fondu Président",null,null,null,"Coulommiers",null,"Gouda",null,"C'est moi"]
[null,"Dessert",null,null,null,"Flan nappé au caramel",null,null,null,"Gaufre liégeoise au chocolat",null,"Pomme (Golden)"]
[]
[]
[]
[null,"Semaine n°23 - du 1 juin au 5 juin"]
[null,null,null,"LUNDI",null,"MARDI",null,"MERCREDI",null,"JEUDI",null,"VENDREDI",null,null,null,null,null,6]
[null,"Entrée",null,"Carottes râpées",null,"Salade de Betteraves",null,null,null,"Salade fattoush",null,"Salade de pommes de terre à l'échalote"]
[null,"Plat principal",null,"Steak haché au jus",null,"Filet colin sauce crevettes",null,null,null,"Boulettes boeuf à l'orientale",null,"Palette de porc à la diable\nOmelette aux fines herbes"]
[null,"Accompagnement",null,"Penne",null,"Riz créole",null,null,null,"Boulgour",null,"Pèle mêle de légumes"]
[null,"Produit laitier",null,"Brie",null,"Edam",null,null,null,"Fromage blanc et sucre",null,"Rondelé nature"]
[null,"Dessert",null,"Mousse au chocolat au lait",null,"Nectarine jaune",null,null,null,"Cake aux fruits secs",null,"Banane"]
[]
[]
[]
[]
[null,"Semaine n°24 - du 8 juin au 12 juin"]
[null,null,null,"LUNDI",null,"MARDI",null,"MERCREDI",null,"JEUDI",null,"VENDREDI",null,null,null,null,null,7]
[null,"Entrée",null,"Salade nicarde",null,"Concombre ciboulette nature",null,null,null,"Tomates nature",null,"Salade verte"]
[null,"Plat principal",null,"Cordon bleu",null,"Chili con carne et riz",null,null,null,"Rôti de porc sauce estragon\nFeuilleté du pêcheur",null,"Marmite de poisson Basquaise"]
[null,"Accompagnement",null,"Courgettes en béchamel",null,null,null,null,null,"Haricots beurre",null,"Semoule"]
[null,"Produit laitier",null,"Mimolette",null,"St Moret",null,null,null,"Fraidou",null,"Yaourt aromatisé",null,null,"Salade nicarde : pomme de terre, tomate, haricot vert"]
[null,"Dessert",null,"Pomme (Golden)",null,"Flan nappé au caramel",null,null,null,"Tarte aux abricotsines fraîche",null,"Compote de pommes cassis"]
[]
[]
[]
[null,"Semaine n°25 - du 15 juin au 19 juin"]
[null,null,null,"LUNDI",null,"MARDI",null,"MERCREDI",null,"JEUDI",null,"VENDREDI",null,null,null,null,null,8]
[null,"Entrée",null,"Radis",null,"Salade Esaü",null,null,null,"Saucisson à l'ail\nSalade de riz vgte.",null,"Melon"]
[null,"Plat principal",null,"Sauté de porc au miel\nOeufs durs béchamel",null,"Colin meunière citron",null,null,null,"Omelette",null,"Sauté de boeuf aux olives"]
[null,"Accompagnement",null,"Riz pilaf",null,"Haricots beurre",null,null,null,"Ratatouille",null,"Purée de pommes de terre"]
[null,"Produit laitier",null,"Bûchette mi-chèvre",null,"Yaourt nature sucré",null,null,null,"Vache qui rit",null,"Coulommiers",null,null,"Salade Esaü : lentille, tomate, œuf dur, échalote, ail, persil"]
[null,"Dessert",null,"Crème dessert vanille",null,"Abricots",null,null,null,"Banane",null,"Flan au chocolat"]
[]
[]
[]
[]
["Semaine n°26 - du 22 juin au 26 juin"]
[null,null,null,"LUNDI",null,"MARDI",null,"MERCREDI",null,"JEUDI",null,"VENDREDI",null,null,null,null,null,9]
[null,"Entrée",null,"Salade Provençale",null,"Salade verte nature",null,null,null,"Tomates nature",null,"Crêpe au fromage"]
[null,"Plat principal",null,"Moc'hyz à l'indienne\nHoki poché citron",null,"Tortis à la bolognaise",null,null,null,"Sauté de porc au romarin\nOmelette sauce basquaise",null,"Filet colin sce catalane"]
[null,"Accompagnement",null,"Courgettes à la provençale",null,null,null,null,null,"Semoule",null,"Haricots verts persillés"]
[null,"Produit laitier",null,"Gouda",null,"Pavé 1/2 sel",null,null,null,"Fromage fondu Président",null,"Camembert",null,null,"Salade Provençale : pomme de terre, tomate, concombre, olive noire"]
[null,"Dessert",null,"Nectarine jaune",null,"Flan à la vanille",null,null,null,"Compote de pommes cassis",null,"Banane"]
[]
[]
[]
[null,"Semaine n°27 - du 29 juin au 3 juillet"]
[null,null,null,"LUNDI",null,"MARDI",null,"MERCREDI",null,"JEUDI",null,"VENDREDI",null,null,null,null,null,10]
[null,"Entrée",null,"Salade de Betteraves",null,"Carottes râpées"]
[null,"Plat principal",null,"Cheese burger",null,"Saucisse Toulouse au rougail\nBœuf sauté au jus"]
[null,"Accompagnement",null,"Frites au four et ketchup",null,"Riz pilaf"]
[null,"Produit laitier",null,"Yaourt aromatisé",null,"Edam"]
[null,"Dessert",null,"Nectarine jaune",null,"Crème dessert caramel"]
[]
[]
[]
[]
[]
[null,null,null,"LUNDI",null,"MARDI",null,"MERCREDI",null,"JEUDI",null,"VENDREDI",null,null,null,null,null,11]
[null,"Entrée"]
[null,"Plat principal"]
[null,"Accompagnement"]
[null,"Produit laitier"]
[null,"Dessert"]
[]
[]
[]
[]
[null,null,null,"LUNDI",null,"MARDI",null,"MERCREDI",null,"JEUDI",null,"VENDREDI",null,null,null,null,null,12]
[null,"Entrée"]
[null,"Plat principal"]
[null,"Accompagnement"]
[null,"Produit laitier"]
[null,"Dessert"]

{"sheet":"Menu CrecheA","index":4,"n_rows":450,"n_cols":15,"rows_kept":450,"cut":false,"hidden":true,"merged":[[115,8,115,12],[117,8,117,11],[7,11,10,12],[45,11,48,12],[83,11,86,12],[17,11,20,12],[55,11,58,12],[93,11,96,12],[1,8,1,12],[41,8,41,11],[77,8,77,12],[79,8,79,11],[3,8,3,11],[39,8,39,12],[421,8,421,11],[387,11,390,12],[397,11,400,12],[381,8,381,12],[383,8,383,11],[419,8,419,12],[231,8,231,11],[267,8,267,12],[269,8,269,11],[321,11,324,12],[235,11,238,12],[245,11,248,12],[305,8,305,12],[307,8,307,11],[283,11,286,12],[311,11,314,12],[1,0,6,0],[7,0,12,0],[13,0,18,0],[19,0,24,0],[25,0,30,0],[31,0,36,0],[435,11,438,12],[121,11,124,12],[425,11,428,12],[197,11,200,12],[273,11,276,12],[349,11,352,12],[131,11,134,12],[207,11,210,12],[359,11,362,12],[229,8,229,12],[153,8,153,12],[155,8,155,11],[191,8,191,12],[193,8,193,11],[159,11,162,12],[169,11,172,12],[343,8,343,12],[345,8,345,11],[115,0,120,0],[197,0,202,0],[191,0,196,0],[127,0,132,0],[39,0,44,0],[45,0,50,0],[51,0,56,0],[121,0,126,0],[57,0,62,0],[63,0,68,0],[153,0,158,0],[159,0,164,0],[165,0,170,0],[171,0,176,0],[177,0,182,0],[183,0,187,0],[95,0,100,0],[101,0,106,0],[107,0,111,0],[69,0,73,0],[77,0,82,0],[83,0,88,0],[89,0,94,0],[221,0,225,0],[209,0,214,0],[215,0,220,0],[203,0,208,0],[133,0,138,0],[139,0,144,0],[145,0,149,0],[229,0,234,0],[323,0,328,0],[235,0,240,0],[241,0,246,0],[247,0,252,0],[253,0,258,0],[259,0,263,0],[267,0,272,0],[273,0,278,0],[279,0,284,0],[305,0,310,0],[311,0,316,0],[317,0,322,0],[285,0,290,0],[291,0,296,0],[297,0,301,0],[367,0,372,0],[373,0,377,0],[381,0,386,0],[329,0,334,0],[335,0,339,0],[343,0,348,0],[349,0,354,0],[355,0,360,0],[361,0,366,0],[449,0,453,0],[419,0,424,0],[425,0,430,0],[431,0,436,0],[437,0,442,0],[387,0,392,0],[393,0,398,0],[399,0,404,0],[443,0,448,0],[405,0,410,0],[411,0,415,0]]}
[null,null,"6/12 mois","12 / 18 mois"," + 18 mois","Effectifs","Effectifs"]
["lundi",null,null,null,null,null,null,null,"ECOLE BOUILLAC",null,null,null,null,null,1]
[]
[null,null,null,null,null,null,null,null,"Semaine n°18 - du 27 avril au 1 mai"]
[]
[]
[]
["mardi"]
[]
[]
[]
[]
[]
["mercredi"]
[]
[]
[]
[]
[]
["jeudi"]
[]
[]
[]
[]
[]
["vendredi"]
[]
[]
[]
[]
[]
[]
[]
[null,null,null,null,null,"Effectifs","Effectifs"]
[]
[]
[]
[]
[]
["lundi",null,null,null,"Salade haricot vert.",null,null,null,{"$f":"Z_TITRE_CrecheA","v":"ECOLE BOUILLAC"},null,null,null,null,null,2]
[null,null,"Blanc de poulet rôti","Blanc de poulet rôti","Blanc de poulet sce aubergine"]
[null,null,"Purée d'épinards","Purée d'épinards","Pomme vapeur",null,null,null,"Semaine n°19 - du 4 mai au 8 mai"]
[null,null,null,"Yaourt nature","Yaourt nature"]
[null,null,"Purée de pomme coing","Purée de pomme coing","Pomme (bicolore)"]
[null,null,"Yaourt nature\nPurée de pommes m","Purée pomme fraise m\nTapioca au lait b","Purée pomme fraise m\nTapioca au lait b"]
["mardi",null,null,null,"Betterave à l'orientale"]
[null,null,"Egréné de boeuf au bouillon","Egréné de boeuf au bouillon","Sauté de boeuf marengo"]
[null,null,"Purée de betterave","Purée de betterave","Papillon b"]
[null,null,null,"Saint Paulin","Saint Paulin"]
[null,null,"Purée pomme banane","Banane","Banane"]
[null,null,"Fromage blanc\nPurée de pomme abricot m","Fromage blanc\nPurée de pomme abricot m","Fromage blanc\nPurée de pomme abricot m"]
["mercredi",null,null,null,"Concombre persillé"]
[null,null,"Cube de saumon","Cube de saumon","Cube de saumon sce citron"]
[null,null,"Purée de courgette","Purée de courgette","Purée de courgette"]
[null,null,null,"Fromage frais"]
[null,null,"Purée pommes rhubarbe m","Purée pommes rhubarbe m","Clafoutis à la rhubarbe"]
[null,null,"Fromage frais\nPurée pomme orange m","Gouda\nPurée pomme orange m","Gouda\nKiwi"]
["jeudi",null,null,null,"Pizza m"]
[null,null,"Sauté de porc\nEgréné de boeuf au bouillon","Sauté de porc\nEgréné de boeuf au bouillon","Sauté de porc aigre douce\nEgréné de boeuf au bouillon"]
[null,null,"Purée de petits pois","Purée de petits pois","Petits pois à la francaise"]
[]
[null,null,"Purée pomme poire m","Fromage blanc\nPurée pomme poire m","Fromage blanc\nPoire"]
[null,null,"Fromage blanc\nPurée de pommes m","Semoule au lait b\nPurée de pommes m","Semoule au lait b\nPurée de pommes m"]
["vendredi"]
[]
[null,null,null,null,null,"Effectifs","Effectifs"]
[]
[]
[]
[]
[]
[]
[]
[]
[]
[]
[]
["lundi",null,null,null,"Gaspacho",null,null,null,{"$f":"Z_TITRE_CrecheA","v":"ECOLE BOUILLAC"},null,null,null,null,null,3]
[null,null,"Sauté d'agneau","Sauté d'agneau","Sauté d'agneau au thym"]
[null,null,"Purée de poireaux","Purée de poireaux","Boulgour b",null,null,null,"Semaine n°20 - du 11 mai au 15 mai"]
[null,null,null,"Camembert","Camembert"]
[null,null,"Purée pomme poire m","Purée pomme poire m","Purée pomme poire m"]
[null,null,"Yaourt nature\nPurée pomme orange m","Yaourt nature\nPurée pomme orange m","Yaourt nature\nOrange"]
["mardi",null,null,null,"Salade de pomme de terre"]
[null,null,"Filet de lieu","Filet de lieu","Filet de lieu sce basilic"]
[null,null,"Purée de courgette","Purée de courgette","Pèle mêle provençal"]
[null,null,null,"Mimolette","Mimolette"]
[null,null,"Purée pomme banane","Banane","Banane"]
[null,null,"Fromage blanc\nPurée pomme pruneau m","Bouillie Bretonne b\nPurée pomme pruneau m","Bouillie Bretonne b\nPurée pomme pruneau m"]
["mercredi",null,null,null,"Carotte râpée"]
[null,null,"Rôti de porc\nBlanc de dinde rôti","Rôti de porc\nBlanc de dinde rôti","Rôti de porc au jus\nBlanc de dinde au jus"]
[null,null,"Purée d'épinards","Purée d'épinards","Haricots blancs à la tomate"]
[null,null,null,"Fromage frais","Fromage frais"]
[null,null,"Purée de pomme coing","Purée de pomme coing","Pomme (bicolore)"]
[null,null,"Fromage frais\nPurée de pommes vanille m","Cotentin nature\nPurée de pommes vanille m","Cotentin nature\nPurée de pommes vanille m"]
["jeudi"]
[]
[null,null,null,null,null,"Effectifs","Effectifs"]
[]
[]
[]
["vendredi",null,null,null,"Betterave persillée"]
[null,null,"Egréné de boeuf au bouillon","Egréné de boeuf au bouillon","Tortis bolognaise"]
[null,null,"Purée de carotte","Purée de carotte"]
[null,null,null,"Emmental","Emmental"]
[null,null,"Purée de pommes m","Purée de pommes m","Pomme (bicolore) b"]
[null,null,"Yaourt nature\nPurée pomme pêche m","Yaourt nature\nPurée pomme pêche m","Yaourt nature\nPurée pomme pêche m"]
[]
[]
[]
[]
[]
[]
[]
[]
["lundi",null,null,null,"Crème de petits pois menthe",null,null,null,{"$f":"Z_TITRE_CrecheA","v":"ECOLE BOUILLAC"},null,null,null,null,null,4]
[null,null,"Filet de colin","Filet de colin"]
[null,null,"Purée de betterave","Purée de betterave","Semoule b",null,null,null,"Semaine n°21 - du 18 mai au 22 mai"]
[null,null,null,"Tomme grise","Tomme grise"]
[null,null,"Purée de pommes m","Purée de pommes m","Pomme (bicolore) b"]
[null,null,"Yaourt nature\nPurée pomme raisin","Yaourt nature\nPurée pomme raisin","Yaourt nature\nPurée pomme raisin"]
["mardi",null,null,null,"Courgette râpée"]
[null,null,"Sauté de veau","Sauté de veau","Veau printanier PC"]
[null,null,"Purée d'haricot vert","Purée d'haricot vert"]
[]
[null,null,"Purée de pomme cannelle m","floraline lait coulis mangue","floraline lait coulis mangue"]
[null,null,"Fromage blanc\nPurée pomme poire m","Buchette mi-chèvre\nPurée pomme poire m","Buchette mi-chèvre\nPoire"]
["mercredi",null,null,null,"Cake petits pois carottes"]
[null,null,"Jambon blanc\nFilet de colin","Jambon blanc\nFilet de colin","Jambon blanc\nFilet de colin"]
[null,null,"Purée d'épinards","Purée de chou fleur","Chou-fleur béchamel","Effectifs","Effectifs"]
[null,null,null,"Coulommiers"]
[null,null,"Purée pomme banane","Banane","Banane"]
[null,null,"Fromage frais\nPurée pomme pruneau m","Fromage frais\nPurée pomme pruneau m","Fromage frais\nPurée pomme pruneau m"]
["jeudi",null,null,null,"Tomate estragon"]
[null,null,"Blanc de dinde rôti","Blanc de dinde rôti","Riz à la volaille petits pois"]
[null,null,"Purée de petits pois","Purée de petits pois"]
[]
[null,null,"Purée de pommes m","Fromage blanc\nPurée pomme cassis m TEST","Fromage blanc\nPurée pomme cassis m TEST"]
[null,null,"Fromage blanc\nPurée pommes rhubarbe m","Gouda\nPurée pommes rhubarbe m","Gouda\nKiwi"]
["vendredi",null,null,null,"Salade verte et maïs"]
[null,null,"Filet de lieu","Filet de lieu","Filet de lieu sce ciboulette"]
[null,null,"Purée de carotte","Purée de carotte","Carotte au jus"]
[null,null,null,"St Moret","St Moret"]
[null,null,"Purée pomme pêche mtest","Smoothie pomme pt pois menthe","Smoothie pomme pt pois menthe"]
[null,null,"Yaourt nature\nPurée de pomme coing","Purée de pomme coing\nSemoule au lait b","Semoule au lait b\nPomme (bicolore)"]
[]
[]
[]
[]
[]
[]
[]
[]
["lundi",null,null,null,null,null,null,null,{"$f":"Z_TITRE_CrecheA","v":"ECOLE BOUILLAC"},null,null,null,null,null,5]
[]
[null,null,null,null,null,null,null,null,"Semaine n°22 - du 25 mai au 29 mai"]
[]
[]
[]
["mardi",null,null,null,"Betterave basilic"]
[null,null,"Cube de saumon","Cube de saumon","Cube de saumon à l'oseille"]
[null,null,"Purée d'épinards","Purée d'épinards","Semoule b","Effectifs","Effectifs"]
[null,null,null,"Fromage frais","Fromage frais"]
[null,null,"Purée de pomme carotte m","Purée de pomme carotte m","Purée de pomme carotte m"]
[null,null,"Fromage frais\nPurée de pommes m","Coulommiers\nPurée de pommes m","Coulommiers\nPomme (bicolore)"]
["mercredi",null,null,null,"Salade antillaise"]
[null,null,"Blanc de poulet rôti","Blanc de poulet rôti","Blanc de poulet au jus"]
[null,null,"Purée de courgette","Purée de courgette","Ratatouille"]
[null,null,null,"Saint Paulin","Saint Paulin"]
[null,null,"Purée pomme banane","Banane","Banane"]
[null,null,"Fromage blanc\nPurée de pommes vanille m","Fromage blanc\nPurée de pommes vanille m","Fromage blanc\nPurée de pommes vanille m"]
["jeudi",null,null,null,"Crème de courgettes"]
[null,null,"Rôti de porc\nBlanc de dinde rôti","Rôti de porc\nBlanc de dinde rôti","Rôti de porc à l'estragon\nBlanc de dinde au jus"]
[null,null,"Purée de betterave","Purée de betterave","Torti"]
[null,null,null,"St Moret","St Moret"]
[null,null,"Purée de pommes m","Purée pomme fraise m","Fraises"]
[null,null,"Fromage frais\nPurée pomme pêche mtest","Bouillie Bretonne b\nPurée pomme pêche mtest","Bouillie Bretonne b\nPêche jaune"]
["vendredi",null,null,null,"Concombre ciboulette"]
[null,null,"Blanc de poulet rôti","Blanc de poulet rôti","Tarte tomate et chèvre"]
[null,null,"Purée d'haricot vert","Purée d'haricot vert","Haricot vert"]
[]
[null,null,"Purée pomme banane","Riz au lait b.","Riz au lait b."]
[null,null,"Yaourt nature\nPurée pomme poire m","Yaourt nature\nPurée pomme poire m","Yaourt nature\nPoire"]
[]
[]
[]
[]
[]
[]
[]
[]
["lundi",null,null,null,"Carotte cuite au citron",null,null,null,{"$f":"Z_TITRE_CrecheA","v":"ECOLE BOUILLAC"},null,null,null,null,null,6]
[null,null,"Sauté de porc\nEgréné de boeuf au bouillon","Sauté de porc\nEgréné de boeuf au bouillon","Sauté de porc au paprika\nEgréné de boeuf au bouillon"]
[null,null,"Purée de betterave","Purée de betterave","Riz pilaf b",null,"Effectifs",null,"Semaine n°23 - du 1 juin au 5 juin"]
[null,null,null,"Edam","Edam"]
[null,null,"Purée de pomme cannelle m","Purée de pomme cannelle m","Pomme (bicolore)"]
[null,null,"Fromage frais\nPurée pomme poire m","Fromage frais\nPurée pomme poire m","Fromage frais\nPurée pomme poire m"]
["mardi",null,null,null,"Tomate basilic"]
[null,null,"Filet de colin","Filet de colin","Filet de colin à l'aneth"]
[null,null,"Purée d'haricot beurre","Purée d'haricot beurre","Haricot beurre"]
[]
[null,null,"Purée pommes rhubarbe m","Semoule au lait b","Semoule au lait b"]
[null,null,"Fromage blanc\nPurée pomme pêche m","Saint Paulin\nPurée pomme pêche m","Saint Paulin\nPêche blanche"]
["mercredi",null,null,null,"Salade de boulgour"]
[null,null,"Rôti de dinde","Rôti de dinde","Emincé de dinde"]
[null,null,"Purée d'épinards","Purée d'épinards","Epinard béchamel"]
[null,null,null,"Fondu Président","Fondu Président"]
[null,null,"Purée pomme banane","Banane","Banane"]
[null,null,"Yaourt nature\nPurée de pomme coing","Yaourt nature\nPurée de pomme coing","Yaourt nature\nFraises"]
["jeudi",null,null,null,"Courgette râpée"]
[null,null,"Egréné de boeuf au bouillon","Egréné de boeuf au bouillon","Coquillette à la bolognaise"]
[null,null,"Purée de carotte","Purée de carotte"]
[null,null,null,"Fromage frais","Fromage frais"]
[null,null,"Purée de pommes m","Purée de pommes m","Pomme au four au miel"]
[null,null,"Fromage frais\nPurée pomme poire m","Rondelé nature\nPurée pomme poire m","Rondelé nature\nPoire b"]
["vendredi",null,null,null,"Crème de betterave glacée"]
[null,null,"Pavé de hoki","Pavé de hoki","Parmentier St Germain"]
[null,null,"Purée de courgette","Purée de courgette"]
[null,null,null,"Camembert","Camembert"]
[null,null,"Purée pomme abricot mtest","Purée pomme abricot mtest","Abricots"]
[null,null,"Yaourt nature\nPurée pomme banane","Yaourt nature\nBanane","Yaourt nature\nBanane"]
[]
[]
[]
[]
[null,null,null,null,null,"Effectifs","Effectifs"]
[]
[]
[]
["lundi",null,null,null,"Salade de riz niçois",null,null,null,{"$f":"Z_TITRE_CrecheA","v":"ECOLE BOUILLAC"},null,null,null,null,null,7]
[null,null,"Egréné de boeuf au bouillon","Egréné de boeuf au bouillon","Sauté de boeuf marengo"]
[null,null,"Purée de carotte","Purée de chou fleur","Brocoli chou-fleur",null,null,null,"Semaine n°24 - du 8 juin au 12 juin"]
[]
[null,null,"Purée pomme banane","Fromage blanc\nBanane","Fromage blanc\nBanane"]
[null,null,"Purée pomme pruneau m\nFromage blanc","Vache qui rit\nPurée pomme pruneau m","Vache qui rit\nPurée pomme pruneau m"]
["mardi",null,null,null,"Macédoine de légumes"]
[null,null,"Egréné de boeuf au bouillon","Egréné de boeuf au bouillon","Tajine de poulet aux abricots"]
[null,null,"Purée d'haricot vert","Purée d'haricot vert","Semoule b"]
[null,null,null,"Tomme blanche","Tomme blanche"]
[null,null,"Purée de pommes vanille m","Purée de pommes vanille m","Pomme (bicolore)"]
[null,null,"Fromage frais\nPurée de pomme coing","Fromage frais\nPurée pomme framboise m","Fromage frais\nPurée pomme framboise m"]
["mercredi",null,null,null,"Carotte batonnet from. blanc"]
[null,null,"Pavé de hoki","Pavé de hoki","Pavé de hoki sce citron"]
[null,null,"Purée de courgette","Purée de courgette","Purée de courgette"]
[]
[null,null,"Purée pommes rhubarbe m","Fromage blanc\nPurée pommes rhubarbe m","Clafoutis à la rhubarbe"]
[null,null,"Fromage blanc\nPurée pomme poire m","Bleu\nPurée pomme poire m","Bleu\nPoire"]
["jeudi",null,null,null,"Toast à la sardine"]
[null,null,"Rôti de porc\nEgréné de boeuf au bouillon","Rôti de porc\nEgréné de boeuf au bouillon","Rôti de porc au jus\nEgréné de boeuf au bouillon"]
[null,null,"Purée de petits pois","Purée de petits pois","Petits pois à la francaise"]
[null,null,null,"Yaourt nature","Yaourt nature"]
[null,null,"Purée de pomme abricot m","Purée de pomme abricot m","Abricots"]
[null,null,"Yaourt nature\nPurée de pommes m","Floraline au lait b\nPurée de pommes m","Floraline au lait b\nPomme (bicolore)"]
["vendredi",null,null,null,"Melon"]
[null,null,"Blanc de dinde rôti","Omelette m","Omelette m aux herbes"]
[null,null,"Purée de betterave","Purée de betterave","Coquillette b"]
[null,null,null,"Coulommiers","Coulommiers"]
[null,null,"Purée pomme pêche m","Purée pomme pêche m","Purée pomme pêche m","Effectifs","Effectifs"]
[null,null,"Fromage blanc\nPurée de pomme coing","St Moret\nPurée de pomme coing","St Moret\nPomme (bicolore)"]
[]
[]
[]
[]
[]
[]
[]
[]
["lundi",null,null,null,"Carotte râpée ciboulette",null,null,null,{"$f":"Z_TITRE_CrecheA","v":"ECOLE BOUILLAC"},null,null,null,null,null,8]
[null,null,"Sauté d'agneau","Sauté d'agneau","Navarin d'agneau"]
[null,null,"Purée d'épinards","Purée d'épinards","Jardinière de légumes",null,null,null,"Semaine n°25 - du 15 juin au 19 juin"]
[null,null,null,"Mimolette","Mimolette"]
[null,null,"Purée pomme banane","Purée pomme mure m","Purée pomme mure m"]
[null,null,"Yaourt nature\nPurée pomme poire m","Yaourt nature\nPurée pomme poire m","Yaourt nature\nPoire b"]
["mardi",null,null,null,"Taboulé"]
[null,null,"Filet de lieu","Filet de lieu","Filet de lieu sce provençale"]
[null,null,"Purée d'haricot beurre","Purée d'haricot beurre","Haricot beurre"]
[null,null,null,null,"Fromage blanc fruits des bois"]
[null,null,"Purée de pommes m","Purée de pommes m\nFromage blanc\nPêche jaune"]
[null,null,"Fromage blanc\nPurée pomme pêche mtest","Cotentin nature\nPurée pomme pêche mtest","Cotentin nature\nPêche jaune"]
["mercredi",null,null,null,"Betterave vgte framboise"]
[null,null,"Jambon blanc\nBlanc de dinde rôti","Jambon blanc\nBlanc de dinde rôti"]
[null,null,"Purée de courgette","Purée de courgette"]
[null,null,null,"Fromage frais","Fromage frais"]
[null,null,"Purée pomme abricot mtest","Purée pomme abricot mtest","Abricots"]
[null,null,"Fromage frais\nPurée pomme pruneau m","Bouillie Bretonne b\nPurée pomme pruneau m","Bouillie Bretonne b\nPurée pomme pruneau m"]
["jeudi",null,null,null,"Radis"]
[null,null,"Pavé de hoki","Pavé de hoki","Pavé de hoki sce basilic"]
[null,null,"Purée de carotte","Purée de carotte","Semoule aux petits légumes"]
[]
[null,null,"Purée pommes rhubarbe m","Fromage blanc\nSmoothie pomme fruit rouge","Fromage blanc\nSmoothie pomme fruit rouge","Effectifs","Effectifs"]
[null,null,"Fromage blanc\nPurée de pommes m","Emmental\nPurée de pommes m","Emmental\nPomme (bicolore)"]
["vendredi",null,null,null,"Gaspacho"]
[null,null,"Blanc de dinde rôti","Blanc de dinde rôti","Blanc de dinde sce cassis"]
[null,null,"Purée de poireaux","Purée de poireaux","Riz créole"]
[null,null,null,"Brie","Brie"]
[null,null,"Purée pomme pêche mtest","Purée pomme pêche mtest","Nectarine jaune"]
[null,null,"Yaourt nature\nPurée de pomme épicée m","Yaourt nature\nPurée de pomme épicée m","Yaourt nature\nPurée de pomme épicée m"]
[]
[]
[]
[]
[]
[]
[]
[]
["lundi",null,null,null,"Crème de courgette fromagefrai",null,null,null,{"$f":"Z_TITRE_CrecheA","v":"ECOLE BOUILLAC"},null,null,null,null,null,9]
[null,null,"Filet de colin","Filet de colin","Parmentier de poisson"]
[null,null,"Purée de carotte","Purée de carotte",null,null,null,null,"Semaine n°26 - du 22 juin au 26 juin"]
[null,null,null,"Tomme grise","Tomme grise"]
[null,null,"Purée pomme pêche mtest","Purée pomme pêche mtest","Pêche blanche"]
[null,null,"Fromage frais\nPurée de pomme coing","Fromage frais\nPurée de pomme coing","Fromage frais\nPurée de pomme coing"]
["mardi",null,null,null,"Salade de torti"]
[null,null,"Sauté de veau","Sauté de veau","Sauté de veau aux poivrons"]
[null,null,"Purée d'haricot vert","Purée d'haricot vert","Haricot vert"]
[null,null,null,"Yaourt nature","Yaourt nature"]
[null,null,"Purée pommes rhubarbe m","Purée pommes rhubarbe m","Purée pommes rhubarbe m"]
[null,null,"Yaourt nature\nPurée pomme pêche mtest","St Moret\nPurée pomme pêche mtest","St Moret\nNectarine Blanche"]
["mercredi",null,null,null,"Cake aux légumes"]
[null,null,"Sauté de porc\nFilet de colin","Sauté de porc\nFilet de colin","Colombo de porc\nFilet de colin"]
[null,null,"Purée de courgette","Purée de courgette","Pèle mêle provençal"]
[null,null,null,"Emmental","Emmental"]
[null,null,"Purée de pommes m","Purée de pommes m","Pomme (bicolore) b","Effectifs","Effectifs"]
[null,null,"Fromage blanc\nPurée pomme poire m","Fromage blanc\nPurée pomme fraise m TEST","Fromage blanc\nPurée pomme fraise m TEST"]
["jeudi",null,null,null,"Concombre persillé"]
[null,null,"Blanc de dinde rôti","Blanc de dinde rôti","Blanc de dinde rôti"]
[null,null,"Purée de petits pois","Purée de petits pois","Riz paëlla"]
[]
[null,null,"Purée de pommes vanille m","Entremet chocolat b","Entremet chocolat b"]
[null,null,"Fromage frais\nPurée pomme pruneau m","Gouda\nPurée pomme pruneau m","Gouda\nKiwi"]
["vendredi",null,null,null,"Salade nantaise"]
[null,null,"Filet de lieu","Filet de lieu","Filet de lieu sce citron"]
[null,null,"Purée d'épinards","Purée de brocolis","Brocoli béchamel"]
[null,null,null,"Camembert","Camembert"]
[null,null,"Purée pomme banane","Banane","Banane"]
[null,null,"Yaourt nature\nPurée pomme poire m","Semoule au lait b\nPurée pomme poire m","Semoule au lait b\nPoire"]
[]
[]
[]
[]
[]
[]
[]
[]
["lundi",null,null,null,"Salade antillaise",null,null,null,{"$f":"Z_TITRE_CrecheA","v":"ECOLE BOUILLAC"},null,null,null,null,null,10]
[null,null,"Egréné de boeuf au bouillon","Egréné de boeuf au bouillon","Gratin courgette Pdt au boeuf"]
[null,null,"Purée de courgette","Purée de courgette",null,null,null,null,"Semaine n°27 - du 29 juin au 3 juillet"]
[null,null,null,"Saint Paulin","Saint Paulin"]
[null,null,"Purée pomme abricot mtest","Purée pomme abricot mtest","Purée pomme abricot mtest"]
[null,null,"Yaourt nature\nPurée pomme pêche mtest","Yaourt nature\nPurée pomme pêche mtest","Yaourt nature\nPurée pomme pêche mtest"]
["mardi",null,null,null,"Tomate"]
[null,null,"Cube de saumon","Cube de saumon","Cube de saumon sce aneth"]
[null,null,"Purée de betterave","Purée de betterave","Pomme vapeur"]
[null,null,null,"Fromage frais","Fromage frais"]
[null,null,"Purée de pomme carotte m","Purée pomme fraise m TEST","Fraises"]
[null,null,"Fromage frais\nPurée pomme banane","Coulommiers\nBanane","Coulommiers\nBanane"]
["mercredi"]
[null,null,null,null,null,"Effectifs","Effectifs"]
[]
[]
[]
[]
["jeudi"]
[]
[]
[]
[]
[]
["vendredi"]
[]
[]
[]
[]
[]
[]
[]
[]
[]
[]
[]
[]
[]
["lundi",null,null,null,null,null,null,null,{"$f":"Z_TITRE_CrecheA","v":"ECOLE BOUILLAC"},null,null,null,null,null,11]
[]
[null,null,null,null,null,null,null,null,"Semaine du tant au tant"]
[]
[]
[]
["mardi"]
[]
[]
[]
[]
[]
["mercredi"]
[]
[]
[]
[]
[]
["jeudi"]
[]
[]
[]
[]
[]
["vendredi"]
[]
[]
[]
[]
[]
["samedi"]
[]
[]
[]
[]
[]
[]
[]
["lundi",null,null,null,null,null,null,null,{"$f":"Z_TITRE_CrecheA","v":"ECOLE BOUILLAC"},null,null,null,null,null,12]
[]
[null,null,null,null,null,null,null,null,"Semaine du tant au tant"]
[]
[]
[]
["mardi"]
[]
[]
[]
[]
[]
["mercredi"]
[]
[]
[]
[]
[]
["jeudi"]
[]
[]
[]
[]
[]
["vendredi"]
[]
[]
[]
[]
[]
["samedi"]

{"sheet":"Menu CollegeA","index":5,"n_rows":214,"n_cols":12,"rows_kept":214,"cut":false,"hidden":true,"merged":[[1,2,2,6],[4,2,4,6],[15,1,15,6],[30,8,30,9],[9,8,10,9],[16,8,17,10],[11,8,11,9],[12,8,12,9],[15,8,15,10],[19,2,20,6],[29,8,29,9],[27,8,28,9],[55,2,56,6],[33,1,33,6],[40,2,40,6],[52,8,53,10],[22,2,22,6],[33,8,33,10],[34,8,35,10],[51,8,51,10],[48,8,48,9],[45,8,46,9],[47,8,47,9],[51,1,51,6],[37,2,38,6],[66,8,66,9],[65,8,65,9],[63,8,64,9],[58,2,58,6],[94,2,94,6],[84,8,84,9],[87,8,87,10],[87,1,87,6],[81,8,82,9],[83,8,83,9],[73,2,74,6],[69,1,69,6],[70,8,71,10],[76,2,76,6],[69,8,69,10],[109,2,110,6],[123,1,123,6],[112,2,112,6],[88,8,89,10],[91,2,92,6],[105,1,105,6],[102,8,102,9],[105,8,105,10],[106,8,107,10],[120,8,120,9],[117,8,118,9],[99,8,100,9],[101,8,101,9],[119,8,119,9],[123,8,123,10],[163,2,164,6],[141,1,141,6],[141,8,141,10],[153,8,154,9],[155,8,155,9],[130,2,130,6],[127,2,128,6],[199,2,200,6],[202,2,202,6],[195,8,195,10],[192,8,192,9],[195,1,195,6],[196,8,197,10],[148,2,148,6],[181,2,182,6],[145,2,146,6],[177,1,177,6],[184,2,184,6],[166,2,166,6],[159,1,159,6],[159,8,159,10],[124,8,125,10],[177,8,177,10],[174,8,174,9],[191,8,191,9],[178,8,179,10],[135,8,136,9],[138,8,138,9],[173,8,173,9],[142,8,143,10],[189,8,190,9],[156,8,156,9],[171,8,172,9],[160,8,161,10],[137,8,137,9],[214,8,215,10],[209,8,209,9],[210,8,210,9],[207,8,208,9],[213,1,213,6],[213,8,213,10]]}
[]
[null,null,"ECOLE BOUILLAC"]
[]
[]
[null,null,"Semaine n°18 - du 27 avril au 1 mai"]
[]
[]
[]
[null,"Entrées",null,null,null,null,null,null,null,null,null,1]
[null,"Plat principal"]
[null,"Accompagnement"]
[null,"Fromages & Produits laitiers"]
[null,"Desserts"]
[]
[]
[null,"Toute l'équipe vous souhaite un bon appétit !"]
[]
[]
[]
[null,null,{"$f":"$C$2","v":"ECOLE BOUILLAC"}]
[]
[]
[null,null,"Semaine n°19 - du 4 mai au 8 mai"]
[]
[]
[]
[null,"Entrées","Pâtes au basilic vgte","Saucisson sec\nOeufs durs mayonnaise.",null,"Carottes râpées",null,null,null,null,null,2]
[null,"Plat principal","Cordon bleu","Filet colin façon beurre blanc",null,"Rôti de porc printanier\nOmelette sauce basquaise"]
[null,"Accompagnement","Carottes à la crème","Purée de pommes de terre",null,"Haricots verts persillés"]
[null,"Fromages & Produits laitiers","Gouda","Yaourt aromatisé",null,"Fromage fondu Président"]
[null,"Desserts","Banane","Pomme (gala)",null,"Tarte Flan."]
[]
[]
[null,"Toute l'équipe vous souhaite un bon appétit !"]
[]
[]
[]
[null,null,{"$f":"$C$2","v":"ECOLE BOUILLAC"}]
[]
[]
[null,null,"Semaine n°20 - du 11 mai au 15 mai"]
[]
[]
[]
[null,"Entrées","Radis","Salade Esaü",null,null,"Concombre persillé",null,null,null,null,3]
[null,"Plat principal","Steak haché au jus","Colin pané et citron",null,null,"Omelette sauce tomate"]
[null,"Accompagnement","Coquillettes","Ratatouille",null,null,"Riz pilaf"]
[null,"Fromages & Produits laitiers","Rondelé nature","Yaourt nature sucré",null,null,"St Moret"]
[null,"Desserts","Flan à la vanille","Fraises et sucre",null,null,"Mousse au chocolat au lait",null,"Salade Esaü : lentille, tomate, œuf dur, échalote, ail, persil"]
[]
[]
[null,"Toute l'équipe vous souhaite un bon appétit !"]
[]
[]
[]
[null,null,{"$f":"$C$2","v":"ECOLE BOUILLAC"}]
[]
[]
[null,null,"Semaine n°21 - du 18 mai au 22 mai"]
[]
[]
[]
[null,"Entrées","Salade arlequin","Carottes râpées",null,"Tomates nature","Crêpe jambon fromage\nCrêpe au fromage",null,null,null,null,4]
[null,"Plat principal","Moc'hyz à la mexicaine\nFilet colin poché citron","Tortis à la bolognaise",null,"Jambon braisé sce barbecue\nOeufs durs sauce aurore","Filet colin sce piperade"]
[null,"Accompagnement","Haricots verts persillés",null,null,"Purée de pommes de terre","Julienne de légumes"]
[null,"Fromages & Produits laitiers","Emmental.","Pavé 1/2 sel",null,"Vache qui rit","Brie"]
[null,"Desserts","Pomme (bicolore)","Liégeois à la vanille",null,"Compote de pommes cassis","Banane",null,"Salade arlequin : pomme de terre, maïs, poivron rouge, poivron vert"]
[]
[]
[null,"Toute l'équipe vous souhaite un bon appétit !"]
[]
[]
[]
[null,null,{"$f":"$C$2","v":"ECOLE BOUILLAC"}]
[]
[]
[null,null,"Semaine n°22 - du 25 mai au 29 mai"]
[]
[]
[]
[null,"Entrées",null,"Radis",null,"Céleri rémoulade","Mortadelle\nOeufs durs mayonnaise.",null,null,null,null,5]
[null,"Plat principal",null,"Saucisse de Toulouse\nMarmite de poisson",null,"Escalope de dinde au jus.","Filet de hoki au beurre citronné"]
[null,"Accompagnement",null,"Frites au four",null,"Haricots beurre","Riz pilaf"]
[null,"Fromages & Produits laitiers",null,"Fromage fondu Président",null,"Coulommiers","Gouda"]
[null,"Desserts",null,"Flan nappé au caramel",null,"Gaufre liégeoise au chocolat","Pomme (Golden)"]
[]
[]
[null,"Toute l'équipe vous souhaite un bon appétit !"]
[]
[]
[]
[null,null,{"$f":"$C$2","v":"ECOLE BOUILLAC"}]
[]
[]
[null,null,"Semaine n°23 - du 1 juin au 5 juin"]
[]
[]
[]
[null,"Entrées","Carottes râpées","Salade de Betteraves",null,"Salade fattoush","Salade de pommes de terre à l'échalote",null,null,null,null,6]
[null,"Plat principal","Steak haché au jus","Filet colin sauce crevettes",null,"Boulettes boeuf à l'orientale","Palette de porc à la diable\nOmelette aux fines herbes"]
[null,"Accompagnement","Penne","Riz créole",null,"Boulgour","Pèle mêle de légumes"]
[null,"Fromages & Produits laitiers","Brie","Edam",null,"Fromage blanc et sucre","Rondelé nature"]
[null,"Desserts","Mousse au chocolat au lait","Nectarine jaune",null,"Cake aux fruits secs","Banane"]
[]
[]
[null,"Toute l'équipe vous souhaite un bon appétit !"]
[]
[]
[]
[null,null,{"$f":"$C$2","v":"ECOLE BOUILLAC"}]
[]
[]
[null,null,"Semaine n°24 - du 8 juin au 12 juin"]
[]
[]
[]
[null,"Entrées","Salade nicarde","Concombre ciboulette nature",null,"Tomates nature","Salade verte",null,null,null,null,7]
[null,"Plat principal","Cordon bleu","Chili con carne et riz",null,"Rôti de porc sauce estragon\nFeuilleté du pêcheur","Marmite de poisson Basquaise"]
[null,"Accompagnement","Courgettes en béchamel",null,null,"Haricots beurre","Semoule"]
[null,"Fromages & Produits laitiers","Mimolette","St Moret",null,"Fraidou","Yaourt aromatisé"]
[null,"Desserts","Pomme (Golden)","Flan nappé au caramel",null,"Tarte aux abricotsines fraîche","Compote de pommes cassis",null,"Salade nicarde : pomme de terre, tomate, haricot vert"]
[]
[]
[null,"Toute l'équipe vous souhaite un bon appétit !"]
[]
[]
[]
[null,null,{"$f":"$C$2","v":"ECOLE BOUILLAC"}]
[]
[]
[null,null,"Semaine n°25 - du 15 juin au 19 juin"]
[]
[]
[]
[null,"Entrées","Radis","Salade Esaü",null,"Saucisson à l'ail\nSalade de riz vgte.","Melon",null,null,null,null,8]
[null,"Plat principal","Sauté de porc au miel\nOeufs durs béchamel","Colin meunière citron",null,"Omelette","Sauté de boeuf aux olives"]
[null,"Accompagnement","Riz pilaf","Haricots beurre",null,"Ratatouille","Purée de pommes de terre"]
[null,"Fromages & Produits laitiers","Bûchette mi-chèvre","Yaourt nature sucré",null,"Vache qui rit","Coulommiers"]
[null,"Desserts","Crème dessert vanille","Abricots",null,"Banane","Flan au chocolat",null,"Salade Esaü : lentille, tomate, œuf dur, échalote, ail, persil"]
[]
[]
[null,"Toute l'équipe vous souhaite un bon appétit !"]
[]
[]
[]
[null,null,{"$f":"$C$2","v":"ECOLE BOUILLAC"}]
[]
[]
[null,null,"Semaine n°26 - du 22 juin au 26 juin"]
[]
[]
[]
[null,"Entrées","Salade Provençale","Salade verte nature",null,"Tomates nature","Crêpe au fromage",null,null,null,null,9]
[null,"Plat principal","Moc'hyz à l'indienne\nHoki poché citron","Tortis à la bolognaise",null,"Sauté de porc au romarin\nOmelette sauce basquaise","Filet colin sce catalane"]
[null,"Accompagnement","Courgettes à la provençale",null,null,"Semoule","Haricots verts persillés"]
[null,"Fromages & Produits laitiers","Gouda","Pavé 1/2 sel",null,"Fromage fondu Président","Camembert"]
[null,"Desserts","Nectarine jaune","Flan à la vanille",null,"Compote de pommes cassis","Banane",null,"Salade Provençale : pomme de terre, tomate, concombre, olive noire"]
[]
[]
[null,"Toute l'équipe vous souhaite un bon appétit !"]
[]
[]
[]
[null,null,{"$f":"$C$2","v":"ECOLE BOUILLAC"}]
[]
[]
[null,null,"Semaine n°27 - du 29 juin au 3 juillet"]
[]
[]
[]
[null,"Entrées","Salade de Betteraves","Carottes râpées",null,null,null,null,null,null,null,10]
[null,"Plat principal","Cheese burger","Saucisse Toulouse au rougail\nBœuf sauté au jus"]
[null,"Accompagnement","Frites au four et ketchup","Riz pilaf"]
[null,"Fromages & Produits laitiers","Yaourt aromatisé","Edam"]
[null,"Desserts","Nectarine jaune","Crème dessert caramel"]
[]
[]
[null,"Toute l'équipe vous souhaite un bon appétit !"]
[]
[]
[]
[null,null,{"$f":"$C$2","v":"ECOLE BOUILLAC"}]
[]
[]
[]
[]
[]
[]
[null,"Entrées",null,null,null,null,null,null,null,null,null,11]
[null,"Plat principal"]
[null,"Accompagnement"]
[null,"Fromages & Produits laitiers"]
[null,"Desserts"]
[]
[]
[null,"Toute l'équipe vous souhaite un bon appétit !"]
[]
[]
[]
[null,null,{"$f":"$C$2","v":"ECOLE BOUILLAC"}]
[]
[]
[]
[]
[]
[]
[null,"Entrées",null,null,null,null,null,null,null,null,null,12]
[null,"Plat principal"]
[null,"Accompagnement"]
[null,"Fromages & Produits laitiers"]
[null,"Desserts"]
[]
[]
[null,"Toute l'équipe vous souhaite un bon appétit !"]

{"sheet":"InfosBulles","index":6,"n_rows":646,"n_cols":5,"rows_kept":646,"cut":false,"hidden":true,"merged":[[2,0,6,0],[36,2,36,4],[38,0,42,0],[44,0,55,0]]}
[]
[null,null,null,"Infos de la semaine"]
["Remplissez ci-contre les légendes à faire figurer dans les infos bulles. Elles seront proposées par la suite dans le formulaire de saisie.",null,null,"C'est la rentrée !"]
[null,null,null,"Bientôt Noël !"]
[]
[null,null,null,"Miam miam des bonnes frites !"]
[]
[]
[]
[]
[]
[]
[]
[]
[]
[]
[]
[]
[]
[]
[]
[]
[]
[]
[]
[]
[]
[]
[]
[]
[]
[]
[]
[]
[]
[]
[null,null,"Références ELIXIR des plats à Composition"]
[null,null,"Reférence Elixir","Libellé du plat (pour mémoire)","Détail de la Composition"]
["Remplissez ci-contre les références de plats ELIXIR dont la composition doit figurer à lédition dans les infos bulles.",null,13220,"Céleri et mayonnaise au curry","Céléri du du jardin et mayonnaise maison."]
[null,null,9870,"Salade de pommes de terre à la catalane","Poivrons, merguez, banane, cacahuètes, sauce minestrone."]
[null,null,"2555","Salade africaineTOUS A RAPE","carotte, ananas, cœur de palmier"]
[null,null,"2556","Salade africaineTOUS RAPE","carotte, ananas, cœur de palmier"]
[null,null,"4149","Salade africaine natureTOUS NATURE RAPE","carotte, ananas, cœur de palmier"]
[null,null,"4150","Salade africaine natureTOUS NATURE A RAPE","carotte, ananas, cœur de palmier"]
["Pour chaque infobulle vous pouvez définir une couleur du fonds et une couleur de texte. Elles seront reprises à l'édition. Il en est de même pour l'alignement horizontal, le nom de la police et sa taille, le gras et l'italique. S'il y a plusieurs compositions pour une même semaine, seule la présentation de la première composition rencontrée servira de modèle.",null,"8833","Salade africaine natureTOUS NATURE A RAPE VRAC","carotte, ananas, cœur de palmier"]
[null,null,"9477","Salade américaineTOUS VRAC NATURE PESSAC","pomme de terre, tomate, céleri rave, maïs, œuf dur"]
[null,null,"6624","Salade américaineTOUS","pomme de terre, tomate, céleri rave, maïs, œuf dur"]
[null,null,"7978","Salade américaineTOUS VRAC NATURE SIVOM","pomme de terre, tomate, céleri rave, maïs, œuf dur"]
[null,null,"6625","Salade américaine natureTOUS NATURE","pomme de terre, tomate, céleri rave, maïs, œuf dur"]
[null,null,"6626","Salade américaine SSETOUS SSE","pomme de terre, tomate, céleri rave, maïs, œuf dur"]
[null,null,"8675","Salade américaineSSUSGTOUS SSU SG","pomme de terre, tomate, céleri rave, maïs, œuf dur"]
[null,null,"8676","Salade américaineSSUSGSSETOUS SSU SG SSE","pomme de terre, tomate, céleri rave, maïs, œuf dur"]
[null,null,"6733","Salade antiboiseTOUS MAYO","macédoine de légumes, thon"]
[null,null,"6736","Salade antiboise NATURETOUS NATURE","macédoine de légumes, thon"]
[null,null,"6735","Salade antiboise vgte SSETOUS VGTE SSE","macédoine de légumes, thon"]
[null,null,"6734","Salade antiboise vinaigretteTOUS VGTE","macédoine de légumes, thon"]
[null,null,"6824","Salade antillaiseTOUS","riz, tomate, ananas, poivron vert, persil"]
[null,null,"4781","Salade antillaiseQUE CRECHE","riz, tomate, ananas, poivron vert, persil"]
[null,null,"1325","Salade argoat mayonnaiseTOUS","pomme de terre, thon, oignon, persil"]
[null,null,"4174","Salade argoat natureTOUS NATURE","pomme de terre, thon, oignon, persil"]
[null,null,"9073","Salade argoat SSUSGTOUS SSU SG","pomme de terre, thon, oignon, persil"]
[null,null,"9074","Salade argoat SSUSGSSETOUS SSU SG SSE","pomme de terre, thon, oignon, persil"]
[null,null,"2510","Salade argoat vinaigretteTOUS","pomme de terre, thon, oignon, persil"]
[null,null,"2512","Salade argoat vinaigrette SSETOUS SSE","pomme de terre, thon, oignon, persil"]
[null,null,"6228","Salade argoat vinaigrette SSE.TOUS VGTE EN AG SSE","pomme de terre, thon, oignon, persil"]
[null,null,"6227","Salade argoat vinaigrette.TOUS VGTE EN AG","pomme de terre, thon, oignon, persil"]
[null,null,"6390","Salade arizonaTOUS","riz, petit-pois, tomate, maïs, emmental"]
[null,null,"6391","Salade arizona SSETOUS SSE","riz, petit-pois, tomate, maïs, emmental"]
[null,null,"2148","Salade arlequinTOUS","pomme de terre, maïs, poivron rouge, poivron vert"]
[null,null,"2158","Salade arlequin natureTOUS NATURE","pomme de terre, maïs, poivron rouge, poivron vert"]
[null,null,"7779","Salade arlequin SGTOUS SG","pomme de terre, maïs, poivron rouge, poivron vert"]
[null,null,"2149","Salade arlequin SSETOUS SSE","pomme de terre, maïs, poivron rouge, poivron vert"]
[null,null,"9146","Salade arlequin SSE.TOUS SSE","pomme de terre, maïs, poivron rouge, poivron vert"]
[null,null,"7780","Salade arlequin SSUSGTOUS SSU SG","pomme de terre, maïs, poivron rouge, poivron vert"]
[null,null,"7781","Salade arlequin SSUSGSSETOUS SSU SG SSE","pomme de terre, maïs, poivron rouge, poivron vert"]
[null,null,"9061","Salade arlequin.TOUS","pomme de terre, maïs, poivron rouge, poivron vert"]
[null,null,"5162","Salade augustinTOUS DOSE","haricot vert, petit pois, tomate, œuf dur, persil"]
[null,null,"5163","Salade augustin natureTOUS NATURE","haricot vert, petit pois, tomate, œuf dur, persil"]
[null,null,"8419","Salade augustin nature.TOUS NATURE","haricot vert, petit pois, tomate, œuf dur, persil"]
[null,null,"8937","Salade augustin SSETOUS DOSE SSE","haricot vert, petit pois, tomate, œuf dur, persil"]
[null,null,"8936","Salade augustin SSUSGTOUS NATURE","haricot vert, petit pois, tomate, œuf dur, persil"]
[null,null,"8935","Salade augustin SSUSGSSETOUS NATURE","haricot vert, petit pois, tomate, œuf dur, persil"]
[null,null,"8420","Salade augustin.TOUS DOSE","haricot vert, petit pois, tomate, œuf dur, persil"]
[null,null,"5208","Salade auvergnateTOUS EMINCE","chou blanc, emmental, oignon, persil"]
[null,null,"5212","Salade auvergnateTOUS EMINCE DOSE","chou blanc, emmental, oignon, persil"]
[null,null,"5210","Salade auvergnate natureTOUS EMINCE NATURE","chou blanc, emmental, oignon, persil"]
[null,null,"7782","Salade auvergnate SGTOUS EMINCE SG","chou blanc, emmental, oignon, persil"]
[null,null,"5211","Salade auvergnate SSETOUS EMINCE DOSE SSE","chou blanc, emmental, oignon, persil"]
[null,null,"5209","Salade auvergnate SSETOUS EMINCE SSE","chou blanc, emmental, oignon, persil"]
[null,null,"7783","Salade auvergnate SSUSGTOUS EMINCE SSU SG","chou blanc, emmental, oignon, persil"]
[null,null,"7784","Salade auvergnate SSUSGSSETOUS EMINCE SSU SG SSE","chou blanc, emmental, oignon, persil"]
[null,null,"6496","Salade bahiannaiseTOUS","riz, maïs, ananas, raisin sec, crevette, persil, curry"]
[null,null,"6497","Salade bahiannaise natureTOUS NATURE","riz, maïs, ananas, raisin sec, crevette, persil, curry"]
[null,null,"6498","Salade bahiannaise SSETOUS SSE","riz, maïs, ananas, raisin sec, crevette, persil, curry"]
[null,null,"5455","Salade baltiqueHORS SCOLAIRE","pomme de terre, hareng, oignon, persil"]
[null,null,"5165","Salade bavaroiseTOUS","pomme de terre, tomate, épaule de porc, emmental"]
[null,null,"7965","Salade bavaroiseTOUS VRAC NATURE","pomme de terre, tomate, épaule de porc, emmental"]
[null,null,"5166","Salade bavaroise natureTOUS NATURE","pomme de terre, tomate, épaule de porc, emmental"]
[null,null,"5167","Salade bavaroise SSETOUS SSE","pomme de terre, tomate, épaule de porc, emmental"]
[null,null,"6481","Salade bavaroise SSETOUS DOSETTE SSE","pomme de terre, tomate, épaule de porc, emmental"]
[null,null,"4151","Salade bicoloreTOUS A RAPE","carotte, radis"]
[null,null,"4152","Salade bicoloreTOUS DEJA RAPE","carotte, radis"]
[null,null,"8530","Salade bicolore BIOTOUS A RAPE CAROTTE TERRE BIO","carotte, radis"]
[null,null,"8531","Salade bicolore BIO SSETOUS A RAPER CAROT TERR BIOSSE","carotte, radis"]
[null,null,"3430","Salade bicolore natureTOUS NATURE DEJA RAPE","carotte, radis"]
[null,null,"3431","Salade bicolore natureTOUS NATURE A RAPE","carotte, radis"]
[null,null,"7785","Salade bicolore SGTOUS SG A RAPE","carotte, radis"]
[null,null,"3963","Salade bicolore SSETOUS DEJA RAPE SSE","carotte, radis"]
[null,null,"3964","Salade bicolore SSETOUS A RAPE SSE","carotte, radis"]
[null,null,"7786","Salade bicolore SSUSGTOUS SSU SG A RAPE","carotte, radis"]
[null,null,"7787","Salade bicolore SSUSGSSETOUS SSU SG SSE A RAPE","carotte, radis"]
[null,null,"1432","Salade blé à la catalane SSETOUS SSE","blé, haricot vert, tomate, thon, oignon"]
[null,null,"8282","Salade blé exotiqueTOUS VRAC","blé, tomate, ananas, maïs"]
[null,null,"8584","Salade blé exotiqueTOUS VRAC SIVOM","blé, tomate, ananas, maïs"]
[null,null,"9057","Salade blé exotiqueTOUS VRAC PESSAC","blé, tomate, ananas, maïs"]
[null,null,"9457","Salade blé exotiqueTOUS","blé, tomate, ananas, maïs"]
[null,null,"9458","Salade blé exotique natureTOUS NATURE","blé, tomate, ananas, maïs"]
[null,null,"8455","Salade blé exotique natureTOUS VRAC NATURE","blé, tomate, ananas, maïs"]
[null,null,"9326","Salade blé Fantaisie nature.TOUS NATURE.","blé, tomate, maïs"]
[null,null,"7805","Salade blé Fantaisie SSUSGSSETOUS SSU SG SSE"]
[null,null,"7808","Salade blé mimolette SSUSGSSETOUS SSU SG SSE","blé, mimolette"]
[null,null,"6482","Salade brésilienneTOUT RAPER","carotte râpée, cœur de palmier, haricot rouge"]
[null,null,"5168","Salade brésilienneTOUS A RAPER","carotte râpée, cœur de palmier, haricot rouge"]
[null,null,"5177","Salade brésilienneTOUS A RAPER DOSE","carotte râpée, cœur de palmier, haricot rouge"]
[null,null,"5176","Salade brésilienne natureTOUS A RAPER NATURE","carotte râpée, cœur de palmier, haricot rouge"]
[null,null,"7788","Salade brésilienne SGTOUS A RAPER SG","carotte râpée, cœur de palmier, haricot rouge"]
[null,null,"5178","Salade brésilienne SSETOUS A RAPER DOSE SSE","carotte râpée, cœur de palmier, haricot rouge"]
[null,null,"5172","Salade brésilienne SSETOUS A RAPER SSE","carotte râpée, cœur de palmier, haricot rouge"]
[null,null,"6483","Salade brésilienne SSETOUS RAPER SSE","carotte râpée, cœur de palmier, haricot rouge"]
[null,null,"7789","Salade brésilienne SSUSGTOUS A RAPER SSU SG","carotte râpée, cœur de palmier, haricot rouge"]
[null,null,"7790","Salade brésilienne SSUSGSSETOUS A RAPER SSU SG SSE","carotte râpée, cœur de palmier, haricot rouge"]
[null,null,"8113","Salade californienne natureTOUS VRAC/BARQUETTE","riz, maïs, épaule de porc, poivron rouge, poivron vert"]
[null,null,"9381","Salade californienne natureTOUS VRAC SIVOM","riz, maïs, épaule de porc, poivron rouge, poivron vert"]
[null,null,"2709","Salade camarguaiseTOUS","riz, tomate, poivron vert, œuf dur, olive noire, cornichon"]
[null,null,"4153","Salade camarguaise natureTOUS NATURE","riz, tomate, poivron vert, œuf dur, olive noire, cornichon"]
[null,null,"7791","Salade camarguaise SGTOUS SG","riz, tomate, poivron vert, œuf dur, olive noire, cornichon"]
[null,null,"2710","Salade camarguaise SSETOUS SSE","riz, tomate, poivron vert, œuf dur, olive noire, cornichon"]
[null,null,"7792","Salade camarguaise SSUSGTOUS SSU SG","riz, tomate, poivron vert, œuf dur, olive noire, cornichon"]
[null,null,"7793","Salade camarguaise SSUSGSSETOUS SSU SG SSE","riz, tomate, poivron vert, œuf dur, olive noire, cornichon"]
[null,null,"5867","Salade cantonnaiseTOUS A RAPE"]
[null,null,"7108","Salade cantonnaise natureTOUS A RAPE NATURE"]
[null,null,"7794","Salade cantonnaise SGTOUS A RAPE SG"]
[null,null,"8103","Salade de la merTOUS VRAC NATURE"]
[null,null,"2848","Salade de lentilleQUE CRECHE"]
[null,null,"2849","Salade de lentille BIOQUE CRECHE BIO"]
[null,null,"2240","Salade de lentillesTOUS A CUIRE"]
[null,null,"8571","Salade de lentillesTOUS VRAC SIVOM"]
[null,null,"2241","Salade de lentilles BIOTOUS A CUIRE BIO"]
[null,null,"4159","Salade de lentilles BIO natTOUS NATURE A CUIRE BIO"]
[null,null,"4161","Salade de lentilles BIO natTOUS NATURE BTE BIO"]
[null,null,"2242","Salade de lentilles BIO SSETOUS A CUIRE BIO SSE"]
[null,null,"2244","Salade de lentilles BIO SSE.TOUS BIO BTE SSE"]
[null,null,"9396","Salade de lentilles BIO vgteTOUS BTE BIO"]
[null,null,"2243","Salade de lentilles BIO.TOUS BTE BIO"]
[null,null,"4160","Salade de lentilles natureTOUS NATURE BTE"]
[null,null,"4158","Salade de lentilles natureTOUS NATURE A CUIRE"]
[null,null,"7809","Salade de lentilles SGTOUS SG BTE"]
[null,null,"2245","Salade de lentilles SSETOUS A CUIRE SSE"]
[null,null,"7810","Salade de lentilles SSUSGTOUS SSU SG BTE"]
[null,null,"7811","Salade de lentilles SSUSGSSETOUS SSU SG SSE BTE"]
[null,null,"9398","Salade de lentilles vgtTOUS BTE"]
[null,null,"2246","Salade de lentilles.TOUS BTE"]
[null,null,"9324","Salade de lentilles..TOUS BTE."]
[null,null,"9328","Salade de lentilles.SSETOUS BTE. SSE"]
[null,null,"2961","Salade de lentilles.SSETOUS BTE SSE"]
[null,null,"6566","Salade de mache aux agrumesHORS SCOLAIRE BARQUETTE"]
[null,null,"7813","Salade de mache aux agrumes SGHORS SCOLAIRE BARQUETTE SG"]
[null,null,"6630","Salade de mache aux agrumesNATHORS SCOLAIRE BARQUETTE NATURE"]
[null,null,"6631","Salade de mache aux agrumesSSEHORS SCOLAIRE BARQUETTE SSE"]
[null,null,"4435","Salade de pâtesTOUS."]
[null,null,"2107","Salade de pâtesTOUS"]
[null,null,"8837","Salade de pâtes au basilicTOUS."]
[null,null,"8838","Salade de pâtes au basilicTOUS"]
[null,null,"9474","Salade de pâtes au basilicTOUS VRAC PESSAC"]
[null,null,"9357","Salade de pâtes BIOTOUS. BIO"]
[null,null,"4436","Salade de pâtes natureTOUS NATURE"]
[null,null,"7636","Salade de pâtes SGTOUS SG"]
[null,null,"4434","Salade de pâtes SSETOUS SSE."]
[null,null,"4266","Salade de pâtes SSETOUS SSE"]
[null,null,"7637","Salade de pâtes SSUSGTOUS SSU SG"]
[null,null,"7638","Salade de pâtes SSUSGSSETOUS SSU SG SSE"]
[null,null,"9750","Salade de PdT from. blanc ciboQUE CRECHE PAST."]
[null,null,"5506","Salade de PdT mimoletteQUE CRECHE FRAIS"]
[null,null,"5507","Salade de PdT mimoletteQUE CRECHE PAST."]
[null,null,"4374","Salade de pomme de terreQUE CRECHE FRAIS"]
[null,null,"2851","Salade de pomme de terreQUE CRECHE PAST."]
[null,null,"2853","Salade de pomme de terre BIOQUE CRECHE BLANCHI BIO"]
[null,null,"4069","Salade de pomme de terre BIOQUE CRECHE FRAIS BIO"]
[null,null,"7975","Salade de printempsTOUS VRAC NATURE"]
[null,null,"2794","Salade de quinoaQUE CRECHE"]
[null,null,"2795","Salade de quinoa BIOQUE CRECHE BIO"]
[null,null,"2844","Salade de rizQUE CRECHE"]
[null,null,"5321","Salade de riz au thonTOUS"]
[null,null,"5323","Salade de riz au thonTOUS DOSE"]
[null,null,"9358","Salade de riz au thonTOUS VRAC SIVOM"]
[null,null,"8379","Salade de riz au thon mayoTOUS"]
[null,null,"5320","Salade de riz au thon natureTOUS NATURE"]
[null,null,"7819","Salade de riz au thon SGTOUS SG"]
[null,null,"5322","Salade de riz au thon SSETOUS SSE"]
[null,null,"5325","Salade de riz au thon SSETOUS DOSE SSE"]
[null,null,"7820","Salade de riz au thon SSUSGTOUS SSU SG"]
[null,null,"7821","Salade de riz au thon SSUSGSSETOUS SSU SG SSE"]
[null,null,"2845","Salade de riz BIOQUE CRECHE BIO"]
[null,null,"2350","Salade de riz BIO natureTOUS NATURE BIO"]
[null,null,"4780","Salade de riz BIO tomateQUE CRECHE BIO"]
[null,null,"2352","Salade de riz BIO vgte SSETOUS BIO SSE"]
[null,null,"2351","Salade de riz BIO vinaigretteTOUS BIO"]
[null,null,"5342","Salade de riz emmentalTOUS"]
[null,null,"5343","Salade de riz emmentalTOUS DOSE"]
[null,null,"5344","Salade de riz emmental natureTOUS NATURE"]
[null,null,"5345","Salade de riz emmental SSETOUS DOSE SSE"]
[null,null,"5346","Salade de riz emmental SSETOUS SSE"]
[null,null,"4233","Salade de riz fantaisieQUE CRECHE"]
[null,null,"4234","Salade de riz fantaisie BIOQUE CRECHE BIO"]
[null,null,"6464","Salade de riz h.vert tomateQUE CRECHE"]
[null,null,"8475","Salade de riz h.vert tomateTOUS"]
[null,null,"8527","Salade de riz haricot vertTOUS"]
[null,null,"8568","Salade de riz haricot vert.TOUS"]
[null,null,"8569","Salade de riz haricot vert.SSETOUS SSE"]
[null,null,"8258","Salade de riz mimoletteTOUS"]
[null,null,"8259","Salade de riz mimoletteTOUS DOSE"]
[null,null,"8260","Salade de riz mimolette natureTOUS NATURE"]
[null,null,"8261","Salade de riz mimolette SSETOUS DOSE SSE"]
[null,null,"8262","Salade de riz mimolette SSETOUS SSE"]
[null,null,"8843","Salade de riz mimosaTOUS.","riz, œuf dur, ciboulette"]
[null,null,"8841","Salade de riz mimosaTOUS","riz, œuf dur, ciboulette"]
[null,null,"8842","Salade de riz mimosa SSETOUS SSE","riz, œuf dur, ciboulette"]
[null,null,"8844","Salade de riz mimosa SSE.TOUS SSE","riz, œuf dur, ciboulette"]
[null,null,"9108","Salade de riz mimosaNATURETOUS NATURE","riz, œuf dur, ciboulette"]
[null,null,"9109","Salade de riz mimosaSSUSGTOUS SSU SG","riz, œuf dur, ciboulette"]
[null,null,"9110","Salade de riz mimosaSSUSGSSETOUS SSU SG SSE","riz, œuf dur, ciboulette"]
[null,null,"4431","Salade de riz natureTOUS NATURE."]
[null,null,"2346","Salade de riz natureTOUS NATURE"]
[null,null,"2846","Salade de riz niçoisQUE CRECHE"]
[null,null,"2847","Salade de riz niçois BIOQUE CRECHE BIO"]
[null,null,"7822","Salade de riz SGTOUS SG"]
[null,null,"7823","Salade de riz SSUSGTOUS SSU SG"]
[null,null,"7824","Salade de riz SSUSGSSETOUS SSU SG SSE"]
[null,null,"4779","Salade de riz tomateQUE CRECHE"]
[null,null,"9414","Salade de riz tomate natureTOUS VRAC NATURE"]
[null,null,"4432","Salade de riz vgteTOUS"]
[null,null,"4433","Salade de riz vgte SSETOUS SSE"]
[null,null,"2347","Salade de riz vinaigretteTOUS"]
[null,null,"2349","Salade de riz vinaigrette SSETOUS SSE"]
[null,null,"4795","Salade de tomate BIO fétaQUE CRECHE BIO"]
[null,null,"9223","Salade de tomate emmentalQUE CRECHE CUBE"]
[null,null,"8893","Salade de tomate fétaTOUS NATURE"]
[null,null,"2828","Salade de tomate fétaQUE CRECHE"]
[null,null,"9631","Salade de tomate maïsQUE CRECHE"]
[null,null,"9476","Salade de tomate mozzarellaTOUS VRAC NATURE PESSAC"]
[null,null,"8831","Salade de tomate mozzarellaTOUS VRAC NATURE SIVOM"]
[null,null,"8705","Salade de tomate mozzarellaTOUS NATURE"]
[null,null,"2829","Salade de tomate mozzarellaQUE CRECHE"]
[null,null,"2842","Salade de tortiQUE CRECHE"]
[null,null,"2843","Salade de torti basilicQUE CRECHE"]
[null,null,"3606","Salade de torti BIOQUE CRECHE BIO"]
[null,null,"3607","Salade de torti BIO basilicQUE CRECHE BIO"]
[null,null,"2925","Salade de torti couleurQUE CRECHE"]
[null,null,"5635","Salade dePdt BIO vinaigretteTOUS BIO"]
[null,null,"5147","Salade des IncasQUE CRECHE","riz, carotte, maïs"]
[null,null,"2284","Salade des incasTOUS","riz, carotte, maïs"]
[null,null,"2285","Salade des incas natureTOUS NATURE","riz, carotte, maïs"]
[null,null,"7825","Salade des incas SGTOUS SG","riz, carotte, maïs"]
[null,null,"2286","Salade des incas SSETOUS SSE","riz, carotte, maïs"]
[null,null,"7826","Salade des incas SSUSGTOUS SSU SG","riz, carotte, maïs"]
[null,null,"7827","Salade des incas SSUSGSSETOUS SSU SG SSE","riz, carotte, maïs"]
[null,null,"3227","Salade d'haricot plat tomateQUE CRECHE"]
[null,null,"2855","Salade d'haricot vert tom. BIOQUE CRECHE BIO"]
[null,null,"2854","Salade d'haricot vert tomateQUE CRECHE"]
[null,null,"4070","Salade du chefTOUS","riz, tomate, épaule, œuf dur, persil"]
[null,null,"4072","Salade du chef natureTOUS NATURE","riz, tomate, épaule, œuf dur, persil"]
[null,null,"9740","Salade du chef natureTOUS VRAC NATURE SIVOM","riz, tomate, épaule, œuf dur, persil"]
[null,null,"7828","Salade du chef SGTOUS SG","riz, tomate, épaule, œuf dur, persil"]
[null,null,"4071","Salade du chef SSETOUS SSE","riz, tomate, épaule, œuf dur, persil"]
[null,null,"7163","Salade du chef SSE.TOUS SANS PORC SSE","riz, tomate, épaule, œuf dur, persil"]
[null,null,"7829","Salade du chef SSUSGTOUS SSU SG","riz, tomate, épaule, œuf dur, persil"]
[null,null,"7830","Salade du chef SSUSGSSETOUS SSU SG SSE","riz, tomate, épaule, œuf dur, persil"]
[null,null,"7162","Salade du chef.TOUS SANS PORC","riz, tomate, épaule, œuf dur, persil"]
[null,null,"2014","Salade du LéonTOUS","chou fleur, maïs, persil"]
[null,null,"4163","Salade du Léon natureTOUS NATURE","chou fleur, maïs, persil"]
[null,null,"7831","Salade du Léon SGTOUS SG","chou fleur, maïs, persil"]
[null,null,"2537","Salade du Léon SSETOUS SSE","chou fleur, maïs, persil"]
[null,null,"7832","Salade du Léon SSUSGTOUS SSU SG","chou fleur, maïs, persil"]
[null,null,"7833","Salade du Léon SSUSGSSETOUS SSU SG SSE","chou fleur, maïs, persil"]
[null,null,"2174","Salade du sud ouestTOUS"]
[null,null,"6493","Salade endive fromagèreTOUS DOSE"]
[null,null,"6495","Salade endive fromagère natureTOUS NATURE"]
[null,null,"6494","Salade endive fromagère SSETOUS DOSE SSE"]
[null,null,"2557","Salade EsaüTOUS BTE","lentille, tomate, œuf dur, échalote, ail, persil"]
[null,null,"2558","Salade EsaüTOUS A CUIRE","lentille, tomate, œuf dur, échalote, ail, persil"]
[null,null,"4164","Salade Esaü natureTOUS NATURE BTE","lentille, tomate, œuf dur, échalote, ail, persil"]
[null,null,"4165","Salade Esaü natureTOUS NATURE A CUIRE","lentille, tomate, œuf dur, échalote, ail, persil"]
[null,null,"7834","Salade Esaü SGTOUS SG BTE","lentille, tomate, œuf dur, échalote, ail, persil"]
[null,null,"3939","Salade Esaü SSETOUS BTE SSE","lentille, tomate, œuf dur, échalote, ail, persil"]
[null,null,"2559","Salade Esaü SSETOUS A CUIRE SSE","lentille, tomate, œuf dur, échalote, ail, persil"]
[null,null,"7835","Salade Esaü SSUSGTOUS SSU SG BTE","lentille, tomate, œuf dur, échalote, ail, persil"]
[null,null,"7836","Salade Esaü SSUSGSSETOUS SSU SG SSE BTE","lentille, tomate, œuf dur, échalote, ail, persil"]
[null,null,"6392","Salade espagnoleTOUS DOSE","haricot vert, tomate, poivron, oignon, chorizo"]
[null,null,"6394","Salade espagnole natureTOUS NATURE","haricot vert, tomate, poivron, oignon, chorizo"]
[null,null,"8147","Salade espagnole SSETOUS DOSE SSE","haricot vert, tomate, poivron, oignon, chorizo"]
[null,null,"9483","Salade exotiqueTOUS VRAC PESSAC","riz, tomate, ananas, maïs, persil"]
[null,null,"4789","Salade exotiqueTOUS","riz, tomate, ananas, maïs, persil"]
[null,null,"5105","Salade exotiqueQUE CRECHE","riz, tomate, ananas, maïs, persil"]
[null,null,"4788","Salade exotique natureTOUS NATURE","riz, tomate, ananas, maïs, persil"]
[null,null,"7837","Salade exotique SGTOUS SG","riz, tomate, ananas, maïs, persil"]
[null,null,"4787","Salade exotique SSETOUS SSE","riz, tomate, ananas, maïs, persil"]
[null,null,"7838","Salade exotique SSUSGTOUS SSU SG","riz, tomate, ananas, maïs, persil"]
[null,null,"7839","Salade exotique SSUSGSSETOUS SSU SG SSE","riz, tomate, ananas, maïs, persil"]
[null,null,"4784","Salade fantaisie natureTOUS RAPE NATURE","celeri rave, ananas, pomme, raisin sec"]
[null,null,"7840","Salade fantaisie SGTOUS RAPE SG","celeri rave, ananas, pomme, raisin sec"]
[null,null,"7945","Salade fantaisie SSUSGTOUS RAPE SSU SG","celeri rave, ananas, pomme, raisin sec"]
[null,null,"7841","Salade fantaisie SSUSGSSETOUS RAPE SSUSGSSE","celeri rave, ananas, pomme, raisin sec"]
[null,null,"4782","Salade fantaisie vgte SSETOUS RAPE SSE","celeri rave, ananas, pomme, raisin sec"]
[null,null,"4783","Salade fantaisie vinaigretteTOUS RAPE","celeri rave, ananas, pomme, raisin sec"]
[null,null,"7847","Salade far. surimi SSUSGSSETOUS SSU SG SSE","celeri rave, ananas, pomme, raisin sec"]
[null,null,"5107","Salade farandoleQUE CRECHE","riz, radis, maïs"]
[null,null,"2027","Salade farandoleTOUS","riz, radis, maïs"]
[null,null,"4166","Salade farandole natureTOUS NATURE","riz, radis, maïs"]
[null,null,"9456","Salade farandole natureTOUS VRAC SIVOM","riz, radis, maïs"]
[null,null,"7842","Salade farandole SGTOUS SG","riz, radis, maïs"]
[null,null,"2028","Salade farandole SSETOUS SSE","riz, radis, maïs"]
[null,null,"7843","Salade farandole SSUSGTOUS SSU SG","riz, radis, maïs"]
[null,null,"7946","Salade farandole SSUSGSSETOUS SSU SG SSE","riz, radis, maïs"]
[null,null,"7947","Salade farandole sur. SSUSGSSETOUS SSU SG SSE","riz, radis, maïs"]
[null,null,"5697","Salade farandole surimiTOUS","riz, radis, maïs"]
[null,null,"5699","Salade farandole surimi natureTOUS NATURE","riz, radis, maïs"]
[null,null,"7845","Salade farandole surimi SGTOUS SG","riz, radis, maïs"]
[null,null,"5698","Salade farandole surimi SSETOUS SSE","riz, radis, maïs"]
[null,null,"7846","Salade farandole surimi SSUSGTOUS SSU SG","riz, radis, maïs"]
[null,null,"2192","Salade fraîcheurTOUS","riz, tomate, maïs, radis"]
[null,null,"8840","Salade fraîcheur BIOTOUS BIO","riz, tomate, maïs, radis"]
[null,null,"2195","Salade fraîcheur natureTOUS NATURE","riz, tomate, maïs, radis"]
[null,null,"9241","Salade fraîcheur nature.TOUS NATURE","riz, tomate, maïs, radis"]
[null,null,"7848","Salade fraîcheur SGTOUS SG","riz, tomate, maïs, radis"]
[null,null,"2193","Salade fraîcheur SSETOUS SSE","riz, tomate, maïs, radis"]
[null,null,"9242","Salade fraîcheur SSE.TOUS SSE","riz, tomate, maïs, radis"]
[null,null,"7849","Salade fraîcheur SSUSGTOUS SSU SG","riz, tomate, maïs, radis"]
[null,null,"7948","Salade fraîcheur SSUSGSSETOUS SSU SG SSE","riz, tomate, maïs, radis"]
[null,null,"9238","Salade fraîcheur.TOUS","riz, tomate, maïs, radis"]
[null,null,"9051","Salade fraîcheur.TOUS VRAC PESSAC","riz, tomate, maïs, radis"]
[null,null,"8907","Salade gauloiseTOUS NATURE A RAPER BARQUETTE","céleri branche, pomme,  salade, emmental, noix"]
[null,null,"8908","Salade gauloiseTOUS NATURE A RAPER VRAC","céleri branche, pomme,  salade, emmental, noix"]
[null,null,"9473","Salade gauloiseTOUS NATURE A RAPER VRAC PESSA","céleri branche, pomme,  salade, emmental, noix"]
[null,null,"9331","Salade grecqueTOUS NATURE","tomate, concombre, olive, féta"]
[null,null,"9488","Salade haricot vertTOUS VRAC SURG PESSAC"]
[null,null,"9394","Salade haricot vert BIOTOUS SURG BIO"]
[null,null,"9255","Salade haricot vert NATURETOUS VRAC SURG SIVOM"]
[null,null,"9254","Salade haricot vert tomate BIOTOUS VRAC SURG BIO SIVOM"]
[null,null,"9431","Salade haricot vert tomateBIOTOUS VRAC SURG BIO SIVOM"]
[null,null,"9067","Salade haricot vert.QUE CRECHE"]
[null,null,"6640","Salade hawaïenne mixTOUS A RAPER","chou vert, tomate, cœur de palmier, crevette, persil"]
[null,null,"8076","Salade hawaïenne mixTOUS A RAPER TOUT VRAC","chou vert, tomate, cœur de palmier, crevette, persil"]
[null,null,"8077","Salade hawaïenne mix NATURETOUS A RAPER NATURE VRAC","chou vert, tomate, cœur de palmier, crevette, persil"]
[null,null,"6641","Salade hawaïenne mix NATURETOUS A RAPER NATURE","chou vert, tomate, cœur de palmier, crevette, persil"]
[null,null,"6642","Salade hawaïenne mix SSETOUS A RAPER SSE","chou vert, tomate, cœur de palmier, crevette, persil"]
[null,null,"2608","Salade hébéTOUS","riz, concombre, thon, œuf dur, persil"]
[null,null,"4167","Salade hébé natureTOUS NATURE","riz, concombre, thon, œuf dur, persil"]
[null,null,"2609","Salade hébé SSETOUS SSE","riz, concombre, thon, œuf dur, persil"]
[null,null,"8177","Salade icebergTOUS VRAC"]
[null,null,"8367","Salade iceberg mimosaTOUS VRAC"]
[null,null,"8178","Salade iceberg.TOUS VRAC"]
[null,null,"5216","Salade indienneTOUS DOSE","riz, cœur de palmier, poivron, raisin"]
[null,null,"5213","Salade indienneTOUS","riz, cœur de palmier, poivron, raisin"]
[null,null,"5215","Salade indienne natureTOUS NATURE","riz, cœur de palmier, poivron, raisin"]
[null,null,"5214","Salade indienne SSETOUS SSE","riz, cœur de palmier, poivron, raisin"]
[null,null,"5217","Salade indienne SSETOUS DOSE SSE","riz, cœur de palmier, poivron, raisin"]
[null,null,"4110","Salade italienneQUE CRECHE","pâte, tomate, olive noire, poivron vert, basilic"]
[null,null,"2110","Salade italienneTOUS","pâte, tomate, olive noire, poivron vert, basilic"]
[null,null,"4230","Salade italienne BIOQUE CRECHE BIO","pâte, tomate, olive noire, poivron vert, basilic"]
[null,null,"5387","Salade italienne bioTOUS BIO","pâte, tomate, olive noire, poivron vert, basilic"]
[null,null,"5389","Salade italienne BIO natureTOUS BIO NATURE","pâte, tomate, olive noire, poivron vert, basilic"]
[null,null,"5388","Salade italienne BIO SSETOUS BIO SSE","pâte, tomate, olive noire, poivron vert, basilic"]
[null,null,"4168","Salade italienne natureTOUS NATURE","pâte, tomate, olive noire, poivron vert, basilic"]
[null,null,"9099","Salade italienne nature.TOUS NATURE","pâte, tomate, olive noire, poivron vert, basilic"]
[null,null,"2108","Salade italienne SSETOUS SSE","pâte, tomate, olive noire, poivron vert, basilic"]
[null,null,"9100","Salade italienne SSE.TOUS SSE","pâte, tomate, olive noire, poivron vert, basilic"]
[null,null,"8728","Salade italienne SSUSGTOUS SSU SG","pâte, tomate, olive noire, poivron vert, basilic"]
[null,null,"9101","Salade italienne SSUSG.TOUS SSU SG","pâte, tomate, olive noire, poivron vert, basilic"]
[null,null,"8729","Salade italienne SSUSGSSETOUS SSU SG SSE","pâte, tomate, olive noire, poivron vert, basilic"]
[null,null,"9102","Salade italienne SSUSGSSE.TOUS SSU SG SSE","pâte, tomate, olive noire, poivron vert, basilic"]
[null,null,"9098","Salade italienne.TOUS","pâte, tomate, olive noire, poivron vert, basilic"]
[null,null,"3953","Salade japonaiseTOUS","pâtes, crevette, carotte, maïs"]
[null,null,"4169","Salade japonaise natureTOUS NATURE","pâtes, crevette, carotte, maïs"]
[null,null,"3954","Salade japonaise SSETOUS SSE","pâtes, crevette, carotte, maïs"]
[null,null,"5184","Salade loretteTOUS","betterave, mâche"]
[null,null,"5186","Salade loretteTOUS DOSE","betterave, mâche"]
[null,null,"5183","Salade lorette natureTOUS NATURE","betterave, mâche"]
[null,null,"7851","Salade lorette SGTOUS SG","betterave, mâche"]
[null,null,"5187","Salade lorette SSETOUS DOSE SSE","betterave, mâche"]
[null,null,"5185","Salade lorette SSETOUS SSE","betterave, mâche"]
[null,null,"7852","Salade lorette SSUSGTOUS SSU SG","betterave, mâche"]
[null,null,"7949","Salade lorette SSUSGSSETOUS SSU SGS SSE","betterave, mâche"]
[null,null,"9546","Salade lorraine bioTOUS VRAC SIVOM CHOU BIO"]
[null,null,"4907","Salade louisetteTOUS","salade, tomate, raisin"]
[null,null,"6396","Salade louisette SSETOUS SSE","salade, tomate, raisin"]
[null,null,"7943","Salade mache agrumes SSUSGSSEHORS SCOLAIRE BARQ. SSU SG SSE"]
[null,null,"7814","Salade mache aux agrumes SSUSGHORS SCOLAIRE BARQUETTE SSU SG"]
[null,null,"2115","Salade marco poloTOUS","pâte, poivron rouge, surimi"]
[null,null,"9731","Salade marco poloTOUS VRAC PESSAC","pâte, poivron rouge, surimi"]
[null,null,"8593","Salade marco poloTOUS VRAC SIVOM","pâte, poivron rouge, surimi"]
[null,null,"8594","Salade marco polo SSETOUS VRAC SIVOM SSE","pâte, poivron rouge, surimi"]
[null,null,"2116","Salade marco polo SSETOUS SSE","pâte, poivron rouge, surimi"]
[null,null,"8672","Salade marco polo.TOUS","pâte, poivron rouge, surimi"]
[null,null,"6477","Salade méléeTOUS BARQUETTE","maïs, salade, croûton"]
[null,null,"8581","Salade méléeTOUS VRAC SIVOM","maïs, salade, croûton"]
[null,null,"9734","Salade méléeTOUS VRAC PESSAC","maïs, salade, croûton"]
[null,null,"5961","Salade MêléeHORS SCOLAIRE","maïs, salade, croûton"]
[null,null,"5962","Salade Mêlée SSEHORS SCOLAIRE SSE","maïs, salade, croûton"]
[null,null,"5918","Salade Méli MéloTOUS","riz, tomate, concombre"]
[null,null,"5919","Salade Méli Mélo natureTOUS NATURE","riz, tomate, concombre"]
[null,null,"5920","Salade Méli Mélo SSETOUS SSE","riz, tomate, concombre"]
[null,null,"6811","Salade MexicaineTOUS","riz, poivron vert, maïs, thon, haricot rouge, olive noire"]
[null,null,"2097","Salade MonégasqueTOUS","riz, thon, tomate"]
[null,null,"4170","Salade Monégasque natureTOUS NATURE","riz, thon, tomate"]
[null,null,"2099","Salade Monégasque SSETOUS SSE","riz, thon, tomate"]
[null,null,"4228","Salade nantaiseQUE CRECHE PAST.","tomate, pomme de terre, haricot vert, concombre"]
[null,null,"6487","Salade NantaiseTOUS NATURE","tomate, pomme de terre, haricot vert, concombre"]
[null,null,"4229","Salade nantaise BIOQUE CRECHE PAST. BIO","tomate, pomme de terre, haricot vert, concombre"]
[null,null,"6488","Salade Nantaise vgteTOUS","tomate, pomme de terre, haricot vert, concombre"]
[null,null,"6489","Salade Nantaise vgte SSETOUS SSE","tomate, pomme de terre, haricot vert, concombre"]
[null,null,"9160","Salade nicardeQUE CRECHE"]
[null,null,"7295","Salade nicardeTOUS","pomme de terre, tomate, haricot vert"]
[null,null,"9729","Salade nicardeTOUS VRAC PESSAC","pomme de terre, tomate, haricot vert"]
[null,null,"9027","Salade nicarde BIOTOUS BIO","pomme de terre, tomate, haricot vert"]
[null,null,"7294","Salade nicarde natureTOUS NATURE","pomme de terre, tomate, haricot vert"]
[null,null,"9028","Salade nicarde nature BIOTOUS NATURE BIO","pomme de terre, tomate, haricot vert"]
[null,null,"7296","Salade nicarde SSETOUS SSE","pomme de terre, tomate, haricot vert"]
[null,null,"9029","Salade nicarde SSE BIOTOUS SSE BIO","pomme de terre, tomate, haricot vert"]
[null,null,"8752","Salade nicarde SSUSGTOUS SSU SG","pomme de terre, tomate, haricot vert"]
[null,null,"8753","Salade nicarde SSUSGSSETOUS SSU SG SSE","pomme de terre, tomate, haricot vert"]
[null,null,"9336","Salade nicarde.QUE CRECHE.","pomme de terre, tomate, haricot vert"]
[null,null,"8181","Salade niçoise BIO natureTOUS BIO NATURE","pomme de terre, tomate, haricot vert, thon, œuf dur, poivron vert, olive noire, persil"]
[null,null,"8182","Salade niçoise BIO vgteTOUS BIO","pomme de terre, tomate, haricot vert, thon, œuf dur, poivron vert, olive noire, persil"]
[null,null,"8183","Salade niçoise BIO vgte SSETOUS SSE BIO","pomme de terre, tomate, haricot vert, thon, œuf dur, poivron vert, olive noire, persil"]
[null,null,"7302","Salade niçoise natureTOUS NATURE","pomme de terre, tomate, haricot vert, thon, œuf dur, poivron vert, olive noire, persil"]
[null,null,"7303","Salade niçoise vgteTOUS","pomme de terre, tomate, haricot vert, thon, œuf dur, poivron vert, olive noire, persil"]
[null,null,"7304","Salade niçoise vgte SSETOUS SSE","pomme de terre, tomate, haricot vert, thon, œuf dur, poivron vert, olive noire, persil"]
[null,null,"6135","Salade orientaleTOUS","riz, poivron vert, œuf dur"]
[null,null,"6140","Salade orientale NATURETOUS NATURE","riz, poivron vert, œuf dur"]
[null,null,"7854","Salade orientale SGTOUS SG","riz, poivron vert, œuf dur"]
[null,null,"6139","Salade orientale SSETOUS SSE","riz, poivron vert, œuf dur"]
[null,null,"7855","Salade orientale SSUSGTOUS SSU SG","riz, poivron vert, œuf dur"]
[null,null,"7951","Salade orientale SSUSGSSETOUS SSU SG SSE","riz, poivron vert, œuf dur"]
[null,null,"8810","Salade parisienneTOUS VRAC SIVOM","pomme de terre, asperge, épaule de porc, tomate"]
[null,null,"9561","Salade parisienneTOUS VRAC PESSAC","pomme de terre, asperge, épaule de porc, tomate"]
[null,null,"9327","Salade parisienne.TOUS","pomme de terre, asperge, épaule de porc, tomate"]
[null,null,"1897","Salade ParmentièreTOUS","pdt, œuf dur, tomate, maïs, poivron, olive"]
[null,null,"1016","Salade Parmentière natureTOUS","pdt, œuf dur, tomate, maïs, poivron, olive"]
[null,null,"9382","Salade Parmentière natureTOUS BARQUETTE","pdt, œuf dur, tomate, maïs, poivron, olive"]
[null,null,"4171","Salade Parmentière natureTOUS NATURE","pdt, œuf dur, tomate, maïs, poivron, olive"]
[null,null,"9487","Salade pastourelleTOUS VRAC PESSAC","pâte, tomate, poivron vert"]
[null,null,"2112","Salade pastourelleTOUS","pâte, tomate, poivron vert"]
[null,null,"4172","Salade pastourelle natureTOUS NATURE","pâte, tomate, poivron vert"]
[null,null,"9411","Salade pastourelle natureTOUS VRAC NATURE SIVOM","pâte, tomate, poivron vert"]
[null,null,"4840","Salade pastourelle nature.TOUS NATURE","pâte, tomate, poivron vert"]
[null,null,"7857","Salade pastourelle SGTOUS SG","pâte, tomate, poivron vert"]
[null,null,"2111","Salade pastourelle SSETOUS SSE","pâte, tomate, poivron vert"]
[null,null,"4841","Salade pastourelle SSE.TOUS SSE","pâte, tomate, poivron vert"]
[null,null,"8609","Salade pastourelle SSUSGTOUS SSUSG","pâte, tomate, poivron vert"]
[null,null,"7858","Salade pastourelle SSUSGTOUS SSU SG","pâte, tomate, poivron vert"]
[null,null,"8610","Salade pastourelle SSUSGSSETOUS SSUSGSSE","pâte, tomate, poivron vert"]
[null,null,"7952","Salade pastourelle SSUSGSSETOUS SSU SG SSE","pâte, tomate, poivron vert"]
[null,null,"4839","Salade pastourelle.TOUS","pâte, tomate, poivron vert"]
[null,null,"2334","Salade pâte tricolore natureTOUS NATURE","pâte, tomate, olive noire, poivron vert"]
[null,null,"8998","Salade pâte tricolore nature.TOUS NATURE","pâte, tomate, olive noire, poivron vert"]
[null,null,"7816","Salade pâte tricolore SGTOUS SG","pâte, tomate, olive noire, poivron vert"]
[null,null,"2335","Salade pâte tricolore SSETOUS SSE","pâte, tomate, olive noire, poivron vert"]
[null,null,"8999","Salade pâte tricolore SSE.TOUS SSE","pâte, tomate, olive noire, poivron vert"]
[null,null,"7817","Salade pâte tricolore SSUSGTOUS SSU SG","pâte, tomate, olive noire, poivron vert"]
[null,null,"7944","Salade pâte tricolore SSUSGSSETOUS SSU SG SSE","pâte, tomate, olive noire, poivron vert"]
[null,null,"8997","Salade pâte tricolore vgtTOUS","pâte, tomate, olive noire, poivron vert"]
[null,null,"9719","Salade pâte tricolore vgt.TOUS VRAC PESSAC","pâte, tomate, olive noire, poivron vert"]
[null,null,"2336","Salade pâte tricolore vgt.TOUS","pâte, tomate, olive noire, poivron vert"]
[null,null,"6501","Salade paysanneTOUS","pomme de terre, carotte, lardon, tomate, croûton"]
[null,null,"6499","Salade paysanneTOUS NATURE","pomme de terre, carotte, lardon, tomate, croûton"]
[null,null,"8716","Salade paysanne BIOTOUS BIO NATURE","pomme de terre, carotte, lardon, tomate, croûton"]
[null,null,"8717","Salade paysanne BIOTOUS BIO","pomme de terre, carotte, lardon, tomate, croûton"]
[null,null,"8718","Salade paysanne BIO SSETOUS BIO SSE","pomme de terre, carotte, lardon, tomate, croûton"]
[null,null,"6500","Salade paysanne SSETOUS SSE","pomme de terre, carotte, lardon, tomate, croûton"]
[null,null,"8714","Salade PDT BIO échal. SSUSGSSETOUS BIO SSU SG SSE"]
[null,null,"8709","Salade PDT BIO échaloteTOUS BIO"]
[null,null,"8710","Salade PDT BIO échalote natureTOUS NATURE BIO"]
[null,null,"8711","Salade PDT BIO échalote SGTOUS BIO SG"]
[null,null,"8712","Salade PDT BIO échalote SSETOUS BIO SSE"]
[null,null,"8713","Salade PDT BIO échalote SSUSGTOUS BIO SSU SG"]
[null,null,"1663","Salade PDT échaloteTOUS"]
[null,null,"4173","Salade PDT échalote natureTOUS NATURE"]
[null,null,"7860","Salade PDT échalote SGTOUS SG"]
[null,null,"1653","Salade PDT échalote SSETOUS SSE"]
[null,null,"7861","Salade PDT échalote SSUSGTOUS SSU SG"]
[null,null,"7862","Salade PDT échalote SSUSGSSETOUS SSU SG SSE"]
[null,null,"9136","Salade pdt haricot vert vgteTOUS"]
[null,null,"8905","Salade PDT persil nat.TOUS NATURE."]
[null,null,"7085","Salade PDT persil NAT.TOUS NATURE"]
[null,null,"7863","Salade PDT persil SGTOUS SG"]
[null,null,"7866","Salade PDT persil SSETOUS SSE"]
[null,null,"8906","Salade PDT persil SSE.TOUS SSE."]
[null,null,"7864","Salade PDT persil SSUSGTOUS SSU SG"]
[null,null,"7865","Salade PDT persil SSUSGSSETOUS SSU SG SSE"]
[null,null,"8904","Salade PDT persil.TOUS."]
[null,null,"8681","Salade PDT thonTOUS"]
[null,null,"8682","Salade PDT thon natureTOUS NATURE"]
[null,null,"4437","Salade PDT tomateTOUS."]
[null,null,"6728","Salade PDT tomateTOUS"]
[null,null,"4439","Salade PDT tomate NATTOUS NATURE."]
[null,null,"6729","Salade PDT tomate natureTOUS NATURE"]
[null,null,"3306","Salade PDT tomate oignonTOUS"]
[null,null,"4175","Salade PDT tomate oignon natTOUS NATURE"]
[null,null,"3307","Salade PDT tomate oignonSSETOUS SSE"]
[null,null,"7867","Salade PDT tomate SGTOUS SG"]
[null,null,"4438","Salade PDT tomate SSETOUS SSE."]
[null,null,"6730","Salade PDT tomate SSETOUS SSE"]
[null,null,"8982","Salade PDT tomate SSUSGTOUS SSUSG"]
[null,null,"7868","Salade PDT tomate SSUSGTOUS SSU SG"]
[null,null,"8983","Salade PDT tomate SSUSGSSETOUS SSUSGSSE"]
[null,null,"7953","Salade PDT tomate SSUSGSSETOUS SSU SG SSE"]
[null,null,"5684","Salade piémontaiseTOUS","pdt, tomate, dés jambon, œuf dur, cornichon"]
[null,null,"5685","Salade piémontaiseTOUS SANS PORC","pdt, tomate, dés jambon, œuf dur, cornichon"]
[null,null,"8595","Salade piémontaiseTOUS SANS PORC VRAC","pdt, tomate, dés jambon, œuf dur, cornichon"]
[null,null,"9150","Salade piémontaise 2 saumonsTOUS","pdt, tomate, dés jambon, œuf dur, cornichon"]
[null,null,"8596","Salade piémontaise SSETOUS SANS PORC VRAC SSE","pdt, tomate, dés jambon, œuf dur, cornichon"]
[null,null,"5686","Salade piémontaise SSETOUS SSE","pdt, tomate, dés jambon, œuf dur, cornichon"]
[null,null,"8820","Salade piémontaise.TOUS","pdt, tomate, dés jambon, œuf dur, cornichon"]
[null,null,"9164","Salade piémontaise.TOUS VRAC PESSAC","pdt, tomate, dés jambon, œuf dur, cornichon"]
[null,null,"9047","Salade piémontaise.TOUS VRAC","pdt, tomate, dés jambon, œuf dur, cornichon"]
[null,null,"5206","Salade pousse de sojaTOUS DOSE"]
[null,null,"5203","Salade pousse de sojaTOUS"]
[null,null,"5205","Salade pousse de soja natureTOUS NATURE"]
[null,null,"7871","Salade pousse de soja SGTOUS SG"]
[null,null,"5204","Salade pousse de soja SSETOUS SSE"]
[null,null,"5207","Salade pousse de soja SSETOUS DOSE SSE"]
[null,null,"7872","Salade pousse de soja SSUSGTOUS SSU SG"]
[null,null,"7873","Salade pousse de soja SSUSGSSETOUS SSUSGSSE"]
[null,null,"9163","Salade provençaleQUE CRECHE","pomme de terre, tomate, concombre, olive noire"]
[null,null,"3428","Salade ProvençaleTOUS","pomme de terre, tomate, concombre, olive noire"]
[null,null,"4231","Salade provençaleQUE CRECHE PAST.","pomme de terre, tomate, concombre, olive noire"]
[null,null,"4232","Salade provençale BIOQUE CRECHE PAST. BIO","pomme de terre, tomate, concombre, olive noire"]
[null,null,"4176","Salade Provençale natureTOUS NATURE","pomme de terre, tomate, concombre, olive noire"]
[null,null,"3429","Salade Provençale SSETOUS SSE","pomme de terre, tomate, concombre, olive noire"]
[null,null,"8618","Salade Provençale SSUSGTOUS SSUSG","pomme de terre, tomate, concombre, olive noire"]
[null,null,"8619","Salade Provençale SSUSGSSETOUS SSUSGSSE","pomme de terre, tomate, concombre, olive noire"]
[null,null,"8284","Salade riz exotiqueTOUS VRAC SIVOM"]
[null,null,"9623","Salade riz exotiqueTOUS VRAC PESSAC"]
[null,null,"5200","Salade romaineTOUS BTE","macédoine de légumes, surimi, persil"]
[null,null,"5201","Salade romaineTOUS BTE DOSE","macédoine de légumes, surimi, persil"]
[null,null,"5199","Salade romaine natureTOUS NATURE BTE","macédoine de légumes, surimi, persil"]
[null,null,"7874","Salade romaine SGTOUS SG BTE","macédoine de légumes, surimi, persil"]
[null,null,"7876","Salade romaine SSETOUS SSE BTE","macédoine de légumes, surimi, persil"]
[null,null,"7875","Salade romaine SSUSGTOUS SSU SG BTE","macédoine de légumes, surimi, persil"]
[null,null,"7877","Salade romaine SSUSGSSETOUS SSU SG SSE BTE","macédoine de légumes, surimi, persil"]
[null,null,"4703","Salade San RémoTOUS NATURE A TRANCHER","tomate, concombre, persil"]
[null,null,"4704","Salade San RémoTOUS NATURE TRANCHER","tomate, concombre, persil"]
[null,null,"4727","Salade San RémoTOUS A TRANCHER DOSETTE","tomate, concombre, persil"]
[null,null,"4728","Salade San RémoTOUS TRANCHER DOSETTE","tomate, concombre, persil"]
[null,null,"3451","Salade soissonTOUS BTE","haricot blanc, tomate, poivron, paprika"]
[null,null,"4177","Salade soisson natureTOUS NATURE BTE","haricot blanc, tomate, poivron, paprika"]
[null,null,"7878","Salade soisson SGTOUS SG BTE","haricot blanc, tomate, poivron, paprika"]
[null,null,"3452","Salade soisson SSETOUS BTE SSE","haricot blanc, tomate, poivron, paprika"]
[null,null,"7879","Salade soisson SSUSGTOUS SSU SG BTE","haricot blanc, tomate, poivron, paprika"]
[null,null,"7954","Salade soisson SSUSGSSETOUS SSU SG SSE BTE","haricot blanc, tomate, poivron, paprika"]
[null,null,"4734","Salade StrasbourgeoiseTOUS","pomme de terre, Sauc.Strasbourg, cornichon, oignon"]
[null,null,"4735","Salade Strasbourgeoise natureTOUS NATURE","pomme de terre, Sauc.Strasbourg, cornichon, oignon"]
[null,null,"4736","Salade Strasbourgeoise SSETOUS SSE","pomme de terre, Sauc.Strasbourg, cornichon, oignon"]
[null,null,"5964","Salade TonicTOUS"]
[null,null,"4925","Salade tourangelleTOUS","pomme de terre, haricot vert, flageolet, échalote, persil"]
[null,null,"4926","Salade tourangelle NATURETOUS NATURE","pomme de terre, haricot vert, flageolet, échalote, persil"]
[null,null,"7881","Salade tourangelle SGTOUS SG","pomme de terre, haricot vert, flageolet, échalote, persil"]
[null,null,"4924","Salade tourangelle SSETOUS SSE","pomme de terre, haricot vert, flageolet, échalote, persil"]
[null,null,"7882","Salade tourangelle SSU SGTOUS SSU SG","pomme de terre, haricot vert, flageolet, échalote, persil"]
[null,null,"7883","Salade tourangelle SSUSGSSETOUS SSU SG SSE","pomme de terre, haricot vert, flageolet, échalote, persil"]
[null,null,"9696","Salade VaucouleursTOUS BTE"]
[null,null,"7508","Salade vendéenneTOUS EMINCE","chou blanc, raisin sec"]
[null,null,"5197","Salade vendéenneTOUS EMINCE DOSE","chou blanc, raisin sec"]
[null,null,"5195","Salade vendéenneTOUS A RAPER","chou blanc, raisin sec"]
[null,null,"5969","Salade vendéenne BIOTOUS EMINCE DOSE BIO","chou blanc, raisin sec"]
[null,null,"5968","Salade vendéenne BIO SSETOUS EMINCE DOSE BIO SSE","chou blanc, raisin sec"]
[null,null,"5193","Salade vendéenne natureTOUS A RAPER NATURE","chou blanc, raisin sec"]
[null,null,"5194","Salade vendéenne natureTOUS EMINCE NATURE","chou blanc, raisin sec"]
[null,null,"5967","Salade vendéenne nature BIOTOUS EMINCE NATURE BIO","chou blanc, raisin sec"]
[null,null,"7884","Salade vendéenne SGTOUS A RAPER SG","chou blanc, raisin sec"]
[null,null,"7509","Salade vendéenne SSETOUS EMINCE SSE","chou blanc, raisin sec"]
[null,null,"5196","Salade vendéenne SSETOUS A RAPER SSE","chou blanc, raisin sec"]
[null,null,"5198","Salade vendéenne SSETOUS EMINCE DOSE SSE","chou blanc, raisin sec"]
[null,null,"7885","Salade vendéenne SSUSGTOUS A RAPER SSU SG","chou blanc, raisin sec"]
[null,null,"7955","Salade vendéenne SSUSGSSETOUS A RAPER SSU SG SSE","chou blanc, raisin sec"]
[null,null,"5189","Salade vénitienneTOUS","pâte coquillette , tomate, thon, olive noire"]
[null,null,"5191","Salade vénitienneTOUS DOSE","pâte coquillette , tomate, thon, olive noire"]
[null,null,"9733","Salade vénitienneTOUS VRAC PESSAC","pâte coquillette , tomate, thon, olive noire"]
[null,null,"4772","Salade venitienne nature1TOUS NATURE","pâte coquillette , tomate, thon, olive noire"]
[null,null,"5188","Salade vénitienne nature2TOUS NATURE","pâte coquillette , tomate, thon, olive noire"]
[null,null,"7887","Salade venitienne SGTOUS SG","pâte coquillette , tomate, thon, olive noire"]
[null,null,"7889","Salade venitienne SG1TOUS SG1","pâte coquillette , tomate, thon, olive noire"]
[null,null,"7891","Salade vénitienne SG2TOUS SG2","pâte coquillette , tomate, thon, olive noire"]
[null,null,"5192","Salade vénitienne SSETOUS DOSE SSE","pâte coquillette , tomate, thon, olive noire"]
[null,null,"4773","Salade venitienne SSE1TOUS SSE","pâte coquillette , tomate, thon, olive noire"]
[null,null,"5190","Salade vénitienne SSE2TOUS SSE","pâte coquillette , tomate, thon, olive noire"]
[null,null,"7888","Salade venitienne SSUSG1TOUS SSU SG 1","pâte coquillette , tomate, thon, olive noire"]
[null,null,"7892","Salade vénitienne SSUSG2TOUS SSU SG2","pâte coquillette , tomate, thon, olive noire"]
[null,null,"7956","Salade venitienne SSUSGSSE1TOUS SSU SG SSE1","pâte coquillette , tomate, thon, olive noire"]
[null,null,"7894","Salade vénitienne SSUSGSSE2TOUS SSU SG SSE2","pâte coquillette , tomate, thon, olive noire"]
[null,null,"4771","Salade venitienne.TOUS","pâte coquillette , tomate, thon, olive noire"]
[null,null,"6693","Salade verteQUE CRECHE"]
[null,null,"478","Salade verte au bleuHORS SCOLAIRE BARQUETTE"]
[null,null,"3697","Salade verte au bleuTOUS VRAC/BARQUETTE"]
[null,null,"3716","Salade verte au bleu SSETOUS VRAC/BARQUETTE SSE"]
[null,null,"3717","Salade verte au bleu SSEHORS SCOLAIRE BARQUETTE SSE"]
[null,null,"3702","Salade verte aux gésiersHORS SCOLAIRE BARQUETTE"]
[null,null,"933","Salade verte aux gésiersHORS SCOLAIRE VRAC ET BARQ VGT"]
[null,null,"3719","Salade verte aux gésiers SSETOUS VRAC/BARQUETTE SSE"]
[null,null,"2169","Salade verte aux noixHORS SCOLAIRE BARQUETTE"]
[null,null,"2850","Salade verte aux noixTOUS VRAC/BARQUETTE"]
[null,null,"9464","Salade verte aux noix NATURETOUS VRAC/BARQUETTE NATURE"]
[null,null,"2170","Salade verte aux noix SSETOUS VRAC/BARQUETTE SSE"]
[null,null,"3720","Salade verte aux noix SSEHORS SCOLAIRE BARQUETTE SSE"]
[null,null,"9406","Salade verte BIOTOUS VRAC BIO"]
[null,null,"3698","Salade verte BIO aux noixHORS SCOLAIRE BARQUETTE BIO"]
[null,null,"2172","Salade verte BIO aux noixTOUS VRAC/BARQUETTE BIO"]
[null,null,"2173","Salade verte BIO aux noix SSETOUS VRAC/BARQU BIO SSE"]
[null,null,"3708","Salade verte BIO aux noix SSEHORS SCOLAIRE BARQUETTEBIO SSE"]
[null,null,"9494","Salade verte BIO et croutonTOUS VRAC BIO PESSAC"]
[null,null,"9529","Salade verte BIO et croutonTOUS VRAC/BARQUETTE BIO"]
[null,null,"3699","Salade verte BIO et emmentalHORS SCOLAIRE BARQUETTE BIO"]
[null,null,"1606","Salade verte BIO et emmentalTOUS VRAC/BARQUETTE BIO"]
[null,null,"2232","Salade verte BIO fromagèreTOUS VRAC/BARQUETTE BIO"]
[null,null,"3700","Salade verte BIO fromagèreHORS SCOLAIRE BARQUETTE BIO"]
[null,null,"3709","Salade verte BIO fromagère SSEHORS SCOLAIRE BARQUETTEBIO SSE"]
[null,null,"2233","Salade verte BIO fromagère SSETOUS VRAC/BARQ DOSETTE BIO SSE"]
[null,null,"5971","Salade verte BIO vgt.HORS SCOLAIRE VRAC BIO"]
[null,null,"8078","Salade verte BIO.TOUS VRAC BIO"]
[null,null,"2230","Salade verte fromagèreTOUS TOUT VRAC"]
[null,null,"3245","Salade verte fromagèreTOUS"]
[null,null,"6616","Salade verte fromagèreHORS SCO VRAC & FROMAGE BARQUE"]
[null,null,"8442","Salade verte fromagèreTOUS TOUT VRAC MAISON"]
[null,null,"8458","Salade verte fromagère NATURETOUS TOUT NATURE"]
[null,null,"6814","Salade verte fromagère SSEHORS SCO VRAC FROM BARQUE SSE"]
[null,null,"2231","Salade verte fromagère SSETOUS SSE"]
[null,null,"4882","Salade verte INDTOUS IND 50G"]
[null,null,"8592","Salade verte mimolette natureTOUS TOUT VRAC NATURE"]
[null,null,"3336","Salade verte SSE.TOUS SSE"]
[null,null,"6130","Salade verte SSE.TOUS VGT MAISON VRAC SSE"]
[null,null,"3714","Salade verte.TOUS"]
[null,null,"3335","Salade verte.TOUS VRAC/BARQUETTE"]
[null,null,"6131","Salade verte.TOUS VGTE MAISON VRAC"]
[null,null,"2207","Salade westernTOUS","haricot rouge, maïs, poivron rouge, persil"]
[null,null,"2211","Salade western natureTOUS NATURE","haricot rouge, maïs, poivron rouge, persil"]
[null,null,"2212","Salade western SSETOUS SSE","haricot rouge, maïs, poivron rouge, persil"]